Workbook

Sheet Index
C1: JEN Reopener - Unforeseen Major Connections Model | K1: Overall Check: | L1: ='Check|List'!$V$1 -> OK
C2: Index
B5: Copyright Jemena Limited. All rights reserved. Jemena is not liable for any loss caused by reliance on this document.
B7: Model Index
C9: Sheet Name | D9: Sheet Description
C10: Index | D10: Model index with hyperlinks
C11: Inputs | D11: Data for inflation, cost escalators, project expenditure, and volumes
C12: Calc|Expenditure | D12: Calculates the expenditure for each project in the terms needed to input to the Capex Forecast Model
C13: Calc|Contributions | D13: Estimates the contribution rates to apply to data centre and non-data centre connections
C14: Outputs | D14: Outputs the expenditure and other inputs needed to the Capex Forecast Model and to estimate bill impacts
C15: Lookup|Tables | D15: Source for named ranges used for units, basis, etc
C16: Check|List | D16: Check for errors
B20: End

Sheet Inputs
C1: =Index!$C$1 -> JEN Reopener - Unforeseen Major Connections Model | F1: Back to Index | H1: Key: | I1: Input (hard code) | J1: External Link | K1: Internal Link | L1: Drop down Selection | M1: Calculation | N1: Unique calculation | O1: Empty cell | R1: Section Check: | S1: =IF(COUNTA($A$115:$A$115)=COUNTIF($A$115:$A$115,"OK"),"OK","Check") -> OK | U1: Overall Check: | V1: ='Check|List'!$V$1 -> OK
C2: =RIGHT(CELL("filename",C1),LEN(CELL("filename",C1))-FIND("]",CELL("filename",C1))) -> Inputs
D3: Source | E3: Unit | F3: Basis | I3: =+J3-1 -> 2022 | J3: =+K3-1 -> 2023 | K3: =+L3-1 -> 2024 | L3: =+M3-1 -> 2025 | M3: 2026 | O3: =I3 -> 2022 | P3: =J3 -> 2023 | Q3: =K3 -> 2024 | R3: =L3 -> 2025 | S3: =M3 -> 2026 | T3: =S3+1 -> 2027 | U3: =T3+1 -> 2028 | V3: =U3+1 -> 2029 | W3: =V3+1 -> 2030 | X3: =W3+1 -> 2031
B5: Copyright Jemena Limited. All rights reserved. Jemena is not liable for any loss caused by reliance on this document.
B7: Input | Inflation and Escalation
C9: Inflation | D9: Source | E9: Unit | F9: Basis | I9: ="RY"&RIGHT(I$3,2) -> RY22 | J9: ="RY"&RIGHT(J$3,2) -> RY23 | K9: ="RY"&RIGHT(K$3,2) -> RY24 | L9: ="RY"&RIGHT(L$3,2) -> RY25 | M9: ="RY"&RIGHT(M$3,2) -> RY26
C11: Actual inflation (year to Dec, lagged as per RFM) | D11: ABS | E11: Per cent | F11: n/a | I11: 0.008605851979 | J11: 0.03498293515 | K11: 0.07831821929
C13: Conversion indexes
C14: From Real CY18 (Mid Period) to Real Jan21-Jun21 (End Period) | D14: AER | E14: Index | F14: n/a | I14: 1.059784113 | J14: =I14 -> 1.059784113 | K14: =J14 -> 1.059784113 | L14: =K14 -> 1.059784113 | M14: =L14 -> 1.059784113
C15: From Real FY24 (Mid Period) to Real CY18 (Mid Period) | D15: Calculated | E15: Index | F15: n/a | L15: =1/(I14*(1+I11)*(1+J11)*(1+K11)^0.5) -> 0.8704712878 | M15: =L15 -> 0.8704712878
C16: Nominal to Real CY18 (Mid Period) | D16: Calculated | E16: Index | F16: n/a | I16: =1/I14/(1+I11)^0.5 -> 0.9395542323 | J16: =I16/(1+I11)^0.5/(1+J11)^0.5 -> 0.9195905862 | K16: =J16/(1+J11)^0.5/(1+K11)^0.5 -> 0.8704712878
C17: To Real CY18 (Mid Period) | D17: Calculated | E17: Index | F17: n/a | I17: =SUM(I15:I16) -> 0.9395542323 | J17: =SUM(J15:J16) -> 0.9195905862 | K17: =SUM(K15:K16) -> 0.8704712878 | L17: =SUM(L15:L16) -> 0.8704712878 | M17: =SUM(M15:M16) -> 0.8704712878
A19: =IF(SUM(I19:M19)=0,"Ok","Check") -> Ok | C19: Check: No errors | I19: =+IF(COUNT(ISERROR(I11:I17))=0,0,1) -> 0 | J19: =+IF(COUNT(ISERROR(J11:J17))=0,0,1) -> 0 | K19: =+IF(COUNT(ISERROR(K11:K17))=0,0,1) -> 0 | L19: =+IF(COUNT(ISERROR(L11:L17))=0,0,1) -> 0 | M19: =+IF(COUNT(ISERROR(M11:M17))=0,0,1) -> 0
C22: Real Escalation | D22: Source | E22: Unit | F22: Basis | G22: Activity Code | I22: ="RY"&RIGHT(I$3,2) -> RY22 | J22: ="RY"&RIGHT(J$3,2) -> RY23 | K22: ="RY"&RIGHT(K$3,2) -> RY24 | L22: ="RY"&RIGHT(L$3,2) -> RY25 | M22: ="RY"&RIGHT(M$3,2) -> RY26 | N22: ◄ Escalator series held constant from RY24 to RY26 as forecasts for FY25 and FY26 are in 2024 dollars.
C24: BUS. SUPPLY PROJECT>10KVA - HV CUSTOMERS | D24: AER | E24: Index | F24: n/a | G24: CBH | I24: 1.007610032 | J24: 1.008777701 | K24: 1.009852242 | L24: =K24 -> 1.009852242 | M24: =L24 -> 1.009852242
C25: BUS. SUPPLY PROJECT>10KVA - INDOOR SUBS. | D25: AER | E25: Index | F25: n/a | G25: CBI | I25: 1.012022968 | J25: 1.013872917 | K25: 1.015576459 | L25: 1.015576459 | M25: 1.015576459
C26: ="PROJECTS SIMILAR TO: "&C27 -> PROJECTS SIMILAR TO: SUBTRANS SYSTEM AUG - CAPACITY RELATED | D26: AER | E26: Index | F26: n/a | G26: CBT | I26: =I27 -> 1.011499432 | J26: =J27 -> 1.013268239 | K26: 1.014896932 | L26: 1.014896932 | M26: 1.014896932 | N26: ◄ The CBT activity code was not allowed for in the 2021-26 determination capex model. However, the activities are similar in nature to those covered by the DOA activity code.
C27: SUBTRANS SYSTEM AUG - CAPACITY RELATED | D27: AER | E27: Index | F27: n/a | G27: DOA | I27: 1.011499432 | J27: 1.013268239 | K27: 1.014896932 | L27: 1.014896932 | M27: 1.014896932
A29: =IF(SUM(I29:M29)=0,"Ok","Check") -> Ok | C29: Check: No errors | I29: =+IF(COUNT(ISERROR(I24:I27))=0,0,1) -> 0 | J29: =+IF(COUNT(ISERROR(J24:J27))=0,0,1) -> 0 | K29: =+IF(COUNT(ISERROR(K24:K27))=0,0,1) -> 0 | L29: =+IF(COUNT(ISERROR(L24:L27))=0,0,1) -> 0 | M29: =+IF(COUNT(ISERROR(M24:M27))=0,0,1) -> 0
B32: Input | Connection Projects
I34: Gross capital expenditure ($Million) | O34: Energy consumption (MWh) | Z34: Contribution Data
I35: Actual ($nominal) | L35: Forecast ($2024) | O35: Actual | R35: Forecast | Z35: Offered or Contracted ($Million) | AD35: Project Details
C36: Project | D36: Source | E36: Unit | F36: Basis | I36: ="RY"&RIGHT(I$3,2) -> RY22 | J36: RY23 | K36: RY24 | L36: RY25 | M36: RY26 | O36: RY22 | P36: RY23 | Q36: RY24 | R36: RY25 | S36: RY26 | T36: RY27 | U36: RY28 | V36: RY29 | W36: RY30 | X36: RY31 | Z36: Contribution | AA36: ICCS | AB36: Ratio | AD36: Type | AE36: Capacity (MW) | AF36: Data notified | AG36: Activity Code | AH36: Asset Class | AI36: WSB 1 | AJ36: WSB 2
C38: [c-i-c] | D38: JEN | E38: Various | F38: Various | I38: 0.27751566 | J38: 0.00583003 | K38: 0.03179783 | L38: 0 | M38: 0 | O38: [c-i-c] | P38: [c-i-c] | Q38: [c-i-c] | R38: [c-i-c] | S38: [c-i-c] | T38: [c-i-c] | U38: [c-i-c] | V38: [c-i-c] | W38: [c-i-c] | X38: [c-i-c] | Z38: 0 | AA38: 0.288548 | AB38: =IF(ISBLANK(AA38),NA(),IF(AA38=0,0,Z38/AA38)) -> 0 | AD38: Data centre | AE38: [c-i-c] | AF38: [c-i-c] | AG38: CBH | AH38: SCS - Distribution system assets | AI38: [c-i-c] | AJ38: [c-i-c]
C39: [c-i-c] | D39: JEN | E39: Various | F39: Various | I39: 0.07455133 | J39: 0.27537009 | K39: 2.67381414 | L39: 3.73779874 | M39: 0 | O39: [c-i-c] | P39: [c-i-c] | Q39: [c-i-c] | R39: [c-i-c] | S39: [c-i-c] | T39: [c-i-c] | U39: [c-i-c] | V39: [c-i-c] | W39: [c-i-c] | X39: [c-i-c] | Z39: 20.364494 | AA39: 12.017259 | AB39: 1.694603903 | AD39: Data centre | AE39: [c-i-c] | AF39: [c-i-c] | AG39: CBH | AH39: SCS - Distribution system assets | AI39: [c-i-c] | AJ39: [c-i-c]
C40: [c-i-c] | D40: JEN | E40: Various | F40: Various | I40: 0 | J40: 0 | K40: 0.002487 | L40: 1.055353096 | M40: 2.450916801 | O40: [c-i-c] | P40: [c-i-c] | Q40: [c-i-c] | R40: [c-i-c] | S40: [c-i-c] | T40: [c-i-c] | U40: [c-i-c] | V40: [c-i-c] | W40: [c-i-c] | X40: [c-i-c] | AB40: =IF(ISBLANK(AA40),NA(),IF(AA40=0,0,Z40/AA40)) ->  | AD40: Data centre | AE40: [c-i-c] | AF40: [c-i-c] | AG40: CBT | AH40: SCS - Subtransmission | AI40: [c-i-c] | AJ40: [c-i-c]
C41: [c-i-c] | D41: JEN | E41: Various | F41: Various | I41: 0 | J41: 0 | K41: 0.00286231 | L41: 5.616380668 | M41: 15.610453 | O41: [c-i-c] | P41: [c-i-c] | Q41: [c-i-c] | R41: [c-i-c] | S41: [c-i-c] | T41: [c-i-c] | U41: [c-i-c] | V41: [c-i-c] | W41: [c-i-c] | X41: [c-i-c] | AD41: Data centre | AE41: [c-i-c] | AF41: [c-i-c] | AG41: CBH | AH41: SCS - Subtransmission | AI41: [c-i-c] | AJ41: [c-i-c]
C42: [c-i-c] | D42: JEN | E42: Various | F42: Various | I42: 0 | J42: 0 | K42: 1.45141196 | L42: 2.342087398 | M42: 0 | O42: [c-i-c] | P42: [c-i-c] | Q42: [c-i-c] | R42: [c-i-c] | S42: [c-i-c] | T42: [c-i-c] | U42: [c-i-c] | V42: [c-i-c] | W42: [c-i-c] | X42: [c-i-c] | Z42: 3.99352883 | AA42: 3.77360987 | AB42: 1.058278139 | AD42: Data centre | AE42: [c-i-c] | AF42: [c-i-c] | AG42: CBH | AH42: SCS - Distribution system assets | AI42: [c-i-c] | AJ42: [c-i-c]
C43: [c-i-c] | D43: JEN | E43: Various | F43: Various | I43: 0.26662565 | J43: 0.13119779 | K43: 5.56493009 | L43: 16.09149094 | M43: 5.317212272 | O43: [c-i-c] | P43: [c-i-c] | Q43: [c-i-c] | R43: [c-i-c] | S43: [c-i-c] | T43: [c-i-c] | U43: [c-i-c] | V43: [c-i-c] | W43: [c-i-c] | X43: [c-i-c] | Z43: 17.425644 | AA43: 45.490097 | AB43: 0.3830645602 | AD43: Data centre | AE43: [c-i-c] | AF43: [c-i-c] | AG43: CBH | AH43: SCS - Distribution system assets | AI43: [c-i-c] | AJ43: [c-i-c]
C44: [c-i-c] | D44: JEN | E44: Various | F44: Various | I44: 0 | J44: 0 | K44: 0.03094609 | L44: 2.50721111 | M44: 4.037627458 | O44: [c-i-c] | P44: [c-i-c] | Q44: [c-i-c] | R44: [c-i-c] | S44: [c-i-c] | T44: [c-i-c] | U44: [c-i-c] | V44: [c-i-c] | W44: [c-i-c] | X44: [c-i-c] | AB44: =AB43 -> 0.3830645602 | AC44: ◄ Covered by DC04 contribution above | AD44: Data centre | AE44: [c-i-c] | AF44: [c-i-c] | AG44: CBT | AH44: SCS - Subtransmission | AI44: [c-i-c] | AJ44: [c-i-c]
C45: [c-i-c] | D45: JEN | E45: Various | F45: Various | I45: 0 | J45: 0 | K45: 0 | L45: 2.532352748 | M45: 6.286278559 | O45: [c-i-c] | P45: [c-i-c] | Q45: [c-i-c] | R45: [c-i-c] | S45: [c-i-c] | T45: [c-i-c] | U45: [c-i-c] | V45: [c-i-c] | W45: [c-i-c] | X45: [c-i-c] | AB45: =AB44 -> 0.3830645602 | AC45: ◄ Covered by DC04 contribution above | AD45: Data centre | AE45: [c-i-c] | AF45: [c-i-c] | AG45: CBT | AH45: SCS - Subtransmission | AI45: [c-i-c] | AJ45: [c-i-c]
C46: [c-i-c] | D46: JEN | E46: Various | F46: Various | I46: 0.03587172 | J46: 1.01170215 | K46: 4.02114119 | L46: 0.009020573346 | M46: 0 | O46: [c-i-c] | P46: [c-i-c] | Q46: [c-i-c] | R46: [c-i-c] | S46: [c-i-c] | T46: [c-i-c] | U46: [c-i-c] | V46: [c-i-c] | W46: [c-i-c] | X46: [c-i-c] | Z46: 6.04715274 | AA46: 6.463782 | AB46: 0.9355440422 | AD46: Data centre | AE46: [c-i-c] | AF46: [c-i-c] | AG46: CBH | AH46: SCS - Distribution system assets | AI46: [c-i-c] | AJ46: [c-i-c]
C47: [c-i-c] | D47: JEN | E47: Various | F47: Various | I47: 0.94583572 | J47: 8.42625344 | K47: 10.3496647 | L47: 1.55314862 | M47: 0 | O47: [c-i-c] | P47: [c-i-c] | Q47: [c-i-c] | R47: [c-i-c] | S47: [c-i-c] | T47: [c-i-c] | U47: [c-i-c] | V47: [c-i-c] | W47: [c-i-c] | X47: [c-i-c] | Z47: 15.695275 | AA47: 22.221361 | AB47: =IF(ISBLANK(AA47),NA(),IF(AA47=0,0,Z47/AA47)) -> 0.7063147482 | AD47: Data centre | AE47: [c-i-c] | AF47: [c-i-c] | AG47: CBH | AH47: SCS - Distribution system assets | AI47: [c-i-c] | AJ47: [c-i-c]
C48: [c-i-c] | D48: JEN | E48: Various | F48: Various | I48: 0 | J48: 0 | K48: 0 | L48: 4.458193717 | M48: 9.316007203 | O48: [c-i-c] | P48: [c-i-c] | Q48: [c-i-c] | R48: [c-i-c] | S48: [c-i-c] | T48: [c-i-c] | U48: [c-i-c] | V48: [c-i-c] | W48: [c-i-c] | X48: [c-i-c] | AD48: Data centre | AE48: [c-i-c] | AF48: [c-i-c] | AG48: CBH | AH48: SCS - Distribution system assets | AI48: [c-i-c] | AJ48: [c-i-c]
C49: [c-i-c] | D49: JEN | E49: Various | F49: Various | I49: 0 | J49: 0.02905594 | K49: 0.10175789 | L49: 3.684730803 | M49: 9.85260251 | O49: [c-i-c] | P49: [c-i-c] | Q49: [c-i-c] | R49: [c-i-c] | S49: [c-i-c] | T49: [c-i-c] | U49: [c-i-c] | V49: [c-i-c] | W49: [c-i-c] | X49: [c-i-c] | AD49: Data centre | AE49: [c-i-c] | AF49: [c-i-c] | AG49: CBH | AH49: SCS - Distribution system assets | AI49: [c-i-c] | AJ49: [c-i-c]
C50: [c-i-c] | D50: JEN | E50: Various | F50: Various | I50: 0 | J50: 0 | K50: 0.002811 | L50: 0.5741148762 | M50: 1.3826603 | O50: [c-i-c] | P50: [c-i-c] | Q50: [c-i-c] | R50: [c-i-c] | S50: [c-i-c] | T50: [c-i-c] | U50: [c-i-c] | V50: [c-i-c] | W50: [c-i-c] | X50: [c-i-c] | AD50: Data centre | AE50: [c-i-c] | AF50: [c-i-c] | AG50: CBT | AH50: SCS - Subtransmission | AI50: [c-i-c] | AJ50: [c-i-c]
C51: [c-i-c] | D51: JEN | E51: Various | F51: Various | I51: 0 | J51: 0.01256914 | K51: 0.06623387 | L51: 0.6337222273 | M51: 6.023478299 | O51: [c-i-c] | P51: [c-i-c] | Q51: [c-i-c] | R51: [c-i-c] | S51: [c-i-c] | T51: [c-i-c] | U51: [c-i-c] | V51: [c-i-c] | W51: [c-i-c] | X51: [c-i-c] | AB51: =IF(ISBLANK(AA51),NA(),IF(AA51=0,0,Z51/AA51)) ->  | AD51: Data centre | AE51: [c-i-c] | AF51: [c-i-c] | AG51: CBH | AH51: SCS - Distribution system assets | AI51: [c-i-c] | AJ51: [c-i-c]
C52: [c-i-c] | D52: JEN | E52: Various | F52: Various | I52: 0 | J52: 0 | K52: 0 | L52: 0 | M52: 0.8324004945 | O52: [c-i-c] | P52: [c-i-c] | Q52: [c-i-c] | R52: [c-i-c] | S52: [c-i-c] | T52: [c-i-c] | U52: [c-i-c] | V52: [c-i-c] | W52: [c-i-c] | X52: [c-i-c] | AD52: Data centre | AE52: [c-i-c] | AF52: [c-i-c] | AG52: CBT | AH52: SCS - Subtransmission | AI52: [c-i-c] | AJ52: [c-i-c]
C53: [c-i-c] | D53: JEN | E53: Various | F53: Various | I53: 0 | J53: 0.03408382 | K53: 1.6814517 | L53: 7.707266198 | M53: 9.307546353 | O53: [c-i-c] | P53: [c-i-c] | Q53: [c-i-c] | R53: [c-i-c] | S53: [c-i-c] | T53: [c-i-c] | U53: [c-i-c] | V53: [c-i-c] | W53: [c-i-c] | X53: [c-i-c] | AB53: =IF(ISBLANK(AA53),NA(),IF(AA53=0,0,Z53/AA53)) ->  | AD53: Data centre | AE53: [c-i-c] | AF53: [c-i-c] | AG53: CBH | AH53: SCS - Distribution system assets | AI53: [c-i-c] | AJ53: [c-i-c]
C54: [c-i-c] | D54: JEN | E54: Various | F54: Various | I54: 0 | J54: 0 | K54: 0 | L54: 0.801898536 | M54: 0.875713464 | O54: [c-i-c] | P54: [c-i-c] | Q54: [c-i-c] | R54: [c-i-c] | S54: [c-i-c] | T54: [c-i-c] | U54: [c-i-c] | V54: [c-i-c] | W54: [c-i-c] | X54: [c-i-c] | AD54: Data centre | AE54: [c-i-c] | AF54: [c-i-c] | AG54: CBH | AH54: SCS - Distribution system assets | AI54: [c-i-c] | AJ54: [c-i-c]
C55: [c-i-c] | D55: JEN | E55: Various | F55: Various | I55: 0.07043081 | J55: 0.19080231 | K55: 0.05108381 | L55: 4.638713579 | M55: 10.91038334 | O55: [c-i-c] | P55: [c-i-c] | Q55: [c-i-c] | R55: [c-i-c] | S55: [c-i-c] | T55: [c-i-c] | U55: [c-i-c] | V55: [c-i-c] | W55: [c-i-c] | X55: [c-i-c] | AD55: Data centre | AE55: [c-i-c] | AF55: [c-i-c] | AG55: CBH | AH55: SCS - Distribution system assets | AI55: [c-i-c] | AJ55: [c-i-c]
C56: [c-i-c] | D56: JEN | E56: Various | F56: Various | I56: 0 | J56: 0 | K56: 0.004092 | L56: 0 | M56: 0.9968535971 | O56: [c-i-c] | P56: [c-i-c] | Q56: [c-i-c] | R56: [c-i-c] | S56: [c-i-c] | T56: [c-i-c] | U56: [c-i-c] | V56: [c-i-c] | W56: [c-i-c] | X56: [c-i-c] | AD56: Data centre | AE56: [c-i-c] | AF56: [c-i-c] | AG56: CBT | AH56: SCS - Subtransmission | AI56: [c-i-c] | AJ56: [c-i-c]
C57: [c-i-c] | D57: JEN | E57: Various | F57: Various | I57: 0 | J57: 0.00269152 | K57: 0.000585 | L57: 4.610076632 | M57: 11.19401203 | O57: [c-i-c] | P57: [c-i-c] | Q57: [c-i-c] | R57: [c-i-c] | S57: [c-i-c] | T57: [c-i-c] | U57: [c-i-c] | V57: [c-i-c] | W57: [c-i-c] | X57: [c-i-c] | AD57: Data centre | AE57: [c-i-c] | AF57: [c-i-c] | AG57: CBH | AH57: SCS - Subtransmission | AI57: [c-i-c] | AJ57: [c-i-c]
C58: [c-i-c] | D58: JEN | E58: Various | F58: Various | I58: 0 | J58: 0 | K58: 0 | L58: 0.5741148762 | M58: 1.3826603 | O58: [c-i-c] | P58: [c-i-c] | Q58: [c-i-c] | R58: [c-i-c] | S58: [c-i-c] | T58: [c-i-c] | U58: [c-i-c] | V58: [c-i-c] | W58: [c-i-c] | X58: [c-i-c] | AD58: Data centre | AE58: [c-i-c] | AF58: [c-i-c] | AG58: CBT | AH58: SCS - Subtransmission | AI58: [c-i-c] | AJ58: [c-i-c]
C59: [c-i-c] | D59: JEN | E59: Various | F59: Various | I59: 0 | J59: 0 | K59: 0 | L59: 1.689222802 | M59: 4.120055616 | O59: [c-i-c] | P59: [c-i-c] | Q59: [c-i-c] | R59: [c-i-c] | S59: [c-i-c] | T59: [c-i-c] | U59: [c-i-c] | V59: [c-i-c] | W59: [c-i-c] | X59: [c-i-c] | AD59: Data centre | AE59: [c-i-c] | AF59: [c-i-c] | AG59: CBT | AH59: SCS - Subtransmission | AI59: [c-i-c] | AJ59: [c-i-c]
C60: [c-i-c] | D60: JEN | E60: Various | F60: Various | I60: 0 | J60: 0 | K60: 0.03628888 | L60: 2.780478347 | M60: 10.36348297 | O60: [c-i-c] | P60: [c-i-c] | Q60: [c-i-c] | R60: [c-i-c] | S60: [c-i-c] | T60: [c-i-c] | U60: [c-i-c] | V60: [c-i-c] | W60: [c-i-c] | X60: [c-i-c] | Z60: 30.146262 | AA60: 25.391284 | AB60: 1.187268119 | AD60: Data centre | AE60: [c-i-c] | AF60: [c-i-c] | AG60: CBH | AH60: SCS - Subtransmission | AI60: [c-i-c] | AJ60: [c-i-c]
C61: [c-i-c] | D61: JEN | E61: Various | F61: Various | I61: 0 | J61: 0 | K61: 0 | L61: 0 | M61: 1.349891495 | O61: [c-i-c] | P61: [c-i-c] | Q61: [c-i-c] | R61: [c-i-c] | S61: [c-i-c] | T61: [c-i-c] | U61: [c-i-c] | V61: [c-i-c] | W61: [c-i-c] | X61: [c-i-c] | AB61: =AB60 -> 1.187268119 | AC61: ◄ Covered by DC18 contribution above | AD61: Data centre | AE61: [c-i-c] | AF61: [c-i-c] | AG61: CBT | AH61: SCS - Subtransmission | AI61: [c-i-c] | AJ61: [c-i-c]
C62: [c-i-c] | D62: JEN | E62: Various | F62: Various | I62: 0 | J62: 0 | K62: 0.01494088 | L62: 2.654537141 | M62: 7.053923851 | O62: [c-i-c] | P62: [c-i-c] | Q62: [c-i-c] | R62: [c-i-c] | S62: [c-i-c] | T62: [c-i-c] | U62: [c-i-c] | V62: [c-i-c] | W62: [c-i-c] | X62: [c-i-c] | AB62: =IF(ISBLANK(AA62),NA(),IF(AA62=0,0,Z62/AA62)) ->  | AD62: Data centre | AE62: [c-i-c] | AF62: [c-i-c] | AG62: CBH | AH62: SCS - Distribution system assets | AI62: [c-i-c] | AJ62: [c-i-c]
C63: [c-i-c] | D63: JEN | E63: Various | F63: Various | I63: 0 | J63: 0 | K63: 0 | L63: 0.5741148762 | M63: 1.3826603 | O63: [c-i-c] | P63: [c-i-c] | Q63: [c-i-c] | R63: [c-i-c] | S63: [c-i-c] | T63: [c-i-c] | U63: [c-i-c] | V63: [c-i-c] | W63: [c-i-c] | X63: [c-i-c] | AD63: Data centre | AE63: [c-i-c] | AF63: [c-i-c] | AG63: CBT | AH63: SCS - Subtransmission | AI63: [c-i-c] | AJ63: [c-i-c]
C64: [c-i-c] | D64: JEN | E64: Various | F64: Various | I64: 0 | J64: 0 | K64: 0 | L64: 1.689222802 | M64: 4.120055616 | O64: [c-i-c] | P64: [c-i-c] | Q64: [c-i-c] | R64: [c-i-c] | S64: [c-i-c] | T64: [c-i-c] | U64: [c-i-c] | V64: [c-i-c] | W64: [c-i-c] | X64: [c-i-c] | AD64: Data centre | AE64: [c-i-c] | AF64: [c-i-c] | AG64: CBT | AH64: SCS - Subtransmission | AI64: [c-i-c] | AJ64: [c-i-c]
C65: [c-i-c] | D65: JEN | E65: Various | F65: Various | I65: 0 | J65: 0 | K65: 0 | L65: 4.640625 | M65: 11.1375 | O65: [c-i-c] | P65: [c-i-c] | Q65: [c-i-c] | R65: [c-i-c] | S65: [c-i-c] | T65: [c-i-c] | U65: [c-i-c] | V65: [c-i-c] | W65: [c-i-c] | X65: [c-i-c] | AD65: Data centre | AE65: [c-i-c] | AF65: [c-i-c] | AG65: CBH | AH65: SCS - Distribution system assets | AI65: [c-i-c] | AJ65: [c-i-c]
C66: [c-i-c] | D66: JEN | E66: Various | F66: Various | I66: 0 | J66: 0 | K66: 0 | L66: 0.5741148762 | M66: 1.3826603 | O66: [c-i-c] | P66: [c-i-c] | Q66: [c-i-c] | R66: [c-i-c] | S66: [c-i-c] | T66: [c-i-c] | U66: [c-i-c] | V66: [c-i-c] | W66: [c-i-c] | X66: [c-i-c] | AD66: Data centre | AE66: [c-i-c] | AF66: [c-i-c] | AG66: CBT | AH66: SCS - Subtransmission | AI66: [c-i-c] | AJ66: [c-i-c]
C67: [c-i-c] | D67: JEN | E67: Various | F67: Various | I67: 1.11315163 | J67: 0.07594839 | K67: 0 | L67: 0 | M67: 0 | O67: [c-i-c] | P67: [c-i-c] | Q67: [c-i-c] | R67: [c-i-c] | S67: [c-i-c] | T67: [c-i-c] | U67: [c-i-c] | V67: [c-i-c] | W67: [c-i-c] | X67: [c-i-c] | Z67: 0.52568039 | AA67: 1.08825967 | AB67: =IF(ISBLANK(AA67),NA(),IF(AA67=0,0,Z67/AA67)) -> 0.4830468357 | AD67: Major infrastructure project | AE67: [c-i-c] | AF67: [c-i-c] | AG67: CBH | AH67: SCS - Distribution system assets | AI67: [c-i-c] | AJ67: [c-i-c]
C68: [c-i-c] | D68: JEN | E68: Various | F68: Various | I68: 0.10010472 | J68: 0.02116709 | K68: 0 | L68: 0 | M68: 0 | O68: [c-i-c] | P68: [c-i-c] | Q68: [c-i-c] | R68: [c-i-c] | S68: [c-i-c] | T68: [c-i-c] | U68: [c-i-c] | V68: [c-i-c] | W68: [c-i-c] | X68: [c-i-c] | Z68: 0 | AA68: 0.399713 | AB68: 0 | AD68: Major infrastructure project | AE68: [c-i-c] | AF68: [c-i-c] | AG68: CBH | AH68: SCS - Distribution system assets | AI68: [c-i-c] | AJ68: [c-i-c]
C69: [c-i-c] | D69: JEN | E69: Various | F69: Various | I69: 5.52004676 | J69: 5.70252572 | K69: 0.01614321 | L69: 0 | M69: 0 | O69: [c-i-c] | P69: [c-i-c] | Q69: [c-i-c] | R69: [c-i-c] | S69: [c-i-c] | T69: [c-i-c] | U69: [c-i-c] | V69: [c-i-c] | W69: [c-i-c] | X69: [c-i-c] | Z69: 13.17596856 | AA69: 15.17056 | AB69: 0.8685222273 | AD69: Major infrastructure project | AE69: [c-i-c] | AF69: [c-i-c] | AG69: CBH | AH69: SCS - Distribution system assets | AI69: [c-i-c] | AJ69: [c-i-c]
C70: [c-i-c] | D70: JEN | E70: Various | F70: Various | I70: 0 | J70: 0 | K70: 2.75109759 | L70: 1.35119792 | M70: 0 | O70: [c-i-c] | P70: [c-i-c] | Q70: [c-i-c] | R70: [c-i-c] | S70: [c-i-c] | T70: [c-i-c] | U70: [c-i-c] | V70: [c-i-c] | W70: [c-i-c] | X70: [c-i-c] | Z70: 2.94293761 | AA70: 2.98077592 | AB70: =IF(ISBLANK(AA70),NA(),IF(AA70=0,0,Z70/AA70)) -> 0.9873058858 | AD70: Major infrastructure project | AE70: [c-i-c] | AF70: [c-i-c] | AG70: CBH | AH70: SCS - Distribution system assets | AI70: [c-i-c] | AJ70: [c-i-c]
C71: [c-i-c] | D71: JEN | E71: Various | F71: Various | I71: 0 | J71: 0.08950285 | K71: 0.0447295 | L71: 0.01767961893 | M71: 0 | O71: [c-i-c] | P71: [c-i-c] | Q71: [c-i-c] | R71: [c-i-c] | S71: [c-i-c] | T71: [c-i-c] | U71: [c-i-c] | V71: [c-i-c] | W71: [c-i-c] | X71: [c-i-c] | AD71: Major infrastructure project | AE71: [c-i-c] | AF71: [c-i-c] | AG71: CBI | AH71: SCS - Distribution system assets | AI71: [c-i-c] | AJ71: [c-i-c]
C72: [c-i-c] | D72: JEN | E72: Various | F72: Various | I72: 0 | J72: 0.0026412 | K72: 0.02365167 | L72: 0.9647191589 | M72: 0.65 | O72: [c-i-c] | P72: [c-i-c] | Q72: [c-i-c] | R72: [c-i-c] | S72: [c-i-c] | T72: [c-i-c] | U72: [c-i-c] | V72: [c-i-c] | W72: [c-i-c] | X72: [c-i-c] | Z72: 0.09897472 | AA72: 0.24552769 | AB72: 0.4031102154 | AD72: Major infrastructure project | AE72: [c-i-c] | AF72: [c-i-c] | AG72: CBH | AH72: SCS - Distribution system assets | AI72: [c-i-c] | AJ72: [c-i-c]
C73: [c-i-c] | D73: JEN | E73: Various | F73: Various | I73: 0 | J73: 0 | K73: 0.00986994 | L73: 2.811950742 | M73: 4.726410427 | O73: [c-i-c] | P73: [c-i-c] | Q73: [c-i-c] | R73: [c-i-c] | S73: [c-i-c] | T73: [c-i-c] | U73: [c-i-c] | V73: [c-i-c] | W73: [c-i-c] | X73: [c-i-c] | AB73: =IF(ISBLANK(AA73),NA(),IF(AA73=0,0,Z73/AA73)) ->  | AD73: Major infrastructure project | AE73: [c-i-c] | AF73: [c-i-c] | AG73: CBH | AH73: SCS - Distribution system assets | AI73: [c-i-c] | AJ73: [c-i-c]
C74: [c-i-c] | D74: JEN | E74: Various | F74: Various | I74: 0 | J74: 0 | K74: 0 | L74: 0.001251411895 | M74: 5.797991331 | O74: [c-i-c] | P74: [c-i-c] | Q74: [c-i-c] | R74: [c-i-c] | S74: [c-i-c] | T74: [c-i-c] | U74: [c-i-c] | V74: [c-i-c] | W74: [c-i-c] | X74: [c-i-c] | AD74: Major infrastructure project | AE74: [c-i-c] | AF74: [c-i-c] | AG74: CBH | AH74: SCS - Distribution system assets | AI74: [c-i-c] | AJ74: [c-i-c]
C75: [c-i-c] | D75: JEN | E75: Various | F75: Various | I75: 0 | J75: 0 | K75: 0.06771942 | L75: 1.8565346 | M75: 2.572715466 | O75: [c-i-c] | P75: [c-i-c] | Q75: [c-i-c] | R75: [c-i-c] | S75: [c-i-c] | T75: [c-i-c] | U75: [c-i-c] | V75: [c-i-c] | W75: [c-i-c] | X75: [c-i-c] | AD75: Major infrastructure project | AE75: [c-i-c] | AF75: [c-i-c] | AG75: CBI | AH75: SCS - Distribution system assets | AI75: [c-i-c] | AJ75: [c-i-c]
C76: [c-i-c] | D76: JEN | E76: Various | F76: Various | I76: 0 | J76: 0 | K76: 0.09820966 | L76: 0.01996076313 | M76: 0 | O76: [c-i-c] | P76: [c-i-c] | Q76: [c-i-c] | R76: [c-i-c] | S76: [c-i-c] | T76: [c-i-c] | U76: [c-i-c] | V76: [c-i-c] | W76: [c-i-c] | X76: [c-i-c] | Z76: 4.12743929 | AA76: 4.376355 | AB76: 0.9431225963 | AD76: Major infrastructure project | AE76: [c-i-c] | AF76: [c-i-c] | AG76: CBH | AH76: SCS - Distribution system assets | AI76: [c-i-c] | AJ76: [c-i-c]
C77: [c-i-c] | D77: JEN | E77: Various | F77: Various | I77: 0 | J77: 0.00075449 | K77: 0.0345634 | L77: 0.2259603521 | M77: 2.49916546 | O77: [c-i-c] | P77: [c-i-c] | Q77: [c-i-c] | R77: [c-i-c] | S77: [c-i-c] | T77: [c-i-c] | U77: [c-i-c] | V77: [c-i-c] | W77: [c-i-c] | X77: [c-i-c] | AD77: Major infrastructure project | AE77: [c-i-c] | AF77: [c-i-c] | AG77: CBH | AH77: SCS - Subtransmission | AI77: [c-i-c] | AJ77: [c-i-c]
C78: [c-i-c] | D78: JEN | E78: Various | F78: Various | I78: 0 | J78: 0 | K78: 0.07064108 | L78: 2.010563063 | M78: 2.782053652 | O78: [c-i-c] | P78: [c-i-c] | Q78: [c-i-c] | R78: [c-i-c] | S78: [c-i-c] | T78: [c-i-c] | U78: [c-i-c] | V78: [c-i-c] | W78: [c-i-c] | X78: [c-i-c] | AD78: Major infrastructure project | AE78: [c-i-c] | AF78: [c-i-c] | AG78: CBH | AH78: SCS - Distribution system assets | AI78: [c-i-c] | AJ78: [c-i-c]
C80: Total Connection Projects | D80: Calculated | E80: Various | F80: Various | I80: =SUM(I38:I79) -> 8.404134 | J80: =SUM(J38:J79) -> 16.01209597 | K80: =SUM(K38:K79) -> 29.20492581 | L80: =SUM(L38:L79) -> 86.98980881 | M80: =SUM(M38:M79) -> 155.7153725 | O80: 10673.294 | P80: 24105.29865 | Q80: 33755.06292 | R80: 411791.8898 | S80: 622446.7367 | T80: 868691.7659 | U80: 1046021.503 | V80: 1142480.633 | W80: 1206324.458 | X80: 1364305.398
A82: =IF(SUM(I82:AB82)=0,"Ok","Check") -> Ok | C82: Check: No errors | I82: =+IF(COUNT(ISERROR(I38:I79))=0,0,1) -> 0 | J82: =+IF(COUNT(ISERROR(J38:J79))=0,0,1) -> 0 | K82: =+IF(COUNT(ISERROR(K38:K79))=0,0,1) -> 0 | L82: =+IF(COUNT(ISERROR(L38:L79))=0,0,1) -> 0 | M82: =+IF(COUNT(ISERROR(M38:M79))=0,0,1) -> 0 | O82: 0 | P82: 0 | Q82: 0 | R82: 0 | S82: 0 | T82: 0 | U82: 0 | V82: 0 | W82: 0 | X82: 0 | Z82: =+IF(COUNT(ISERROR(Z38:Z79))=0,0,1) -> 0 | AA82: =+IF(COUNT(ISERROR(AA38:AA79))=0,0,1) -> 0 | AB82: =+IF(COUNT(ISERROR(AB38:AB79))=0,0,1) -> 0
B85: Input | Augmentation Projects
I87: Gross capital expenditure ($Million)
I88: Actual ($nominal) | L88: Forecast ($2024) | AD88: Project Details
C89: Project | D89: Source | E89: Unit | F89: Basis | I89: ="RY"&RIGHT(I$3,2) -> RY22 | J89: ="RY"&RIGHT(J$3,2) -> RY23 | K89: ="RY"&RIGHT(K$3,2) -> RY24 | L89: ="RY"&RIGHT(L$3,2) -> RY25 | M89: ="RY"&RIGHT(M$3,2) -> RY26 | AD89: Type | AE89: Capacity (MW) | AF89: Data notified | AG89: Activity Code | AH89: Asset Class | AI89: WSB 1 | AJ89: WSB 2
C91: Augex - DC11&DC20 - ST-SSS 66kV line extension | D91: JEN | E91: Various | F91: Various | I91: 0 | J91: 0 | K91: 0.10132389 | L91: 3.951388584 | M91: 5.276663467 | AD91: Data centre | AG91: DOA | AH91: SCS - Subtransmission | AI91: BAA-DOA-000030 | AJ91: 0
C92: Augex - DC12&DC18&DC01 - augment KTS-AW | D92: JEN | E92: Various | F92: Various | I92: 0 | J92: 0 | K92: 0.004416 | L92: 0 | M92: 2.008435907 | AD92: Data centre | AG92: DOA | AH92: SCS - Subtransmission | AI92: BAA-DOA-000038 | AJ92: BAA-DOA-000032
C93: Augex - DC02&DC09 - New 66kV line incomer at FW | D93: JEN | E93: Various | F93: Various | I93: 0 | J93: 0 | K93: 0.002343 | L93: 0 | M93: 0.9546629382 | AD93: Data centre | AG93: DOA | AH93: SCS - Subtransmission | AI93: BAA-DOA-999999 | AJ93: BAA-CBT-000006
C94: Augex - DC02&DC09 - Tie TH-FW 66kV loops | D94: JEN | E94: Various | F94: Various | I94: 0 | J94: 0 | K94: 0 | L94: 0.8129609023 | M94: 1.982831469 | AD94: Data centre | AG94: DOA | AH94: SCS - Subtransmission | AI94: BAA-DOA-000035 | AJ94: 0
C96: Total Augmentation Projects | D96: Calculated | E96: Various | F96: Various | I96: =SUM(I91:I95) -> 0 | J96: =SUM(J91:J95) -> 0 | K96: =SUM(K91:K95) -> 0.10808289 | L96: =SUM(L91:L95) -> 4.764349486 | M96: =SUM(M91:M95) -> 10.22259378
A98: =IF(SUM(I98:M98)=0,"Ok","Check") -> Ok | C98: Check: No errors | I98: =+IF(COUNT(ISERROR(I91:I95))=0,0,1) -> 0 | J98: =+IF(COUNT(ISERROR(J91:J95))=0,0,1) -> 0 | K98: =+IF(COUNT(ISERROR(K91:K95))=0,0,1) -> 0 | L98: =+IF(COUNT(ISERROR(L91:L95))=0,0,1) -> 0 | M98: =+IF(COUNT(ISERROR(M91:M95))=0,0,1) -> 0
B101: Input | Contributions
C103: Input | D103: Source | E103: Unit | F103: Basis | I103: Rate | K103: Type
C105: Contribution Rates Adopted for 2021-26
C106: Residential Developments | D106: AER | E106: Per cent | F106: n/a | I106: 0.319 | K106: Other
C107: Medium Density Housing | D107: AER | E107: Per cent | F107: n/a | I107: 0.459 | K107: Other
C108: Pole to Pit | D108: AER | E108: Per cent | F108: n/a | I108: 0.707 | K108: Ignore
C109: Data Centre | D109: AER | E109: Per cent | F109: n/a | I109: 0.583448203 | K109: Data Centre
C110: Infrastructure Projects | D110: AER | E110: Per cent | F110: n/a | I110: 0.62 | K110: Other
C111: Capital Recoverable Works | D111: AER | E111: Per cent | F111: n/a | I111: 0.99 | K111: Ignore
C112: Capital Recoverable Works (Emergency) | D112: AER | E112: Per cent | F112: n/a | I112: 1 | K112: Ignore
B115: End

Sheet Calc|Expenditure
C1: =Index!$C$1 -> JEN Reopener - Unforeseen Major Connections Model | F1: Back to Index | H1: Key: | I1: Input (hard code) | J1: External Link | K1: Internal Link | L1: Drop down Selection | M1: Calculation | N1: Unique calculation | O1: Empty cell | R1: Section Check: | S1: =IF(COUNTA($A$7:$A$89)=COUNTIF($A$7:$A$89,"OK"),"OK","Check") -> OK | U1: Overall Check: | V1: ='Check|List'!$V$1 -> OK
C2: =RIGHT(CELL("filename",C1),LEN(CELL("filename",C1))-FIND("]",CELL("filename",C1))) -> Calc|Expenditure
D3: Source | E3: Unit | F3: Basis | I3: =+J3-1 -> 2022 | J3: =+K3-1 -> 2023 | K3: =+L3-1 -> 2024 | L3: =+M3-1 -> 2025 | M3: =+Inputs!$M$3 -> 2026
B5: Copyright Jemena Limited. All rights reserved. Jemena is not liable for any loss caused by reliance on this document.
B7: Calc | Connection Projects
C9: Project | D9: Source | E9: Unit | F9: Basis | I9: ="RY"&RIGHT(I$3,2) -> RY22 | J9: ="RY"&RIGHT(J$3,2) -> RY23 | K9: ="RY"&RIGHT(K$3,2) -> RY24 | L9: ="RY"&RIGHT(L$3,2) -> RY25 | M9: ="RY"&RIGHT(M$3,2) -> RY26 | N9: Total | P9: Type | Q9: Asset Class
C11: [c-i-c] | D11: Inputs | E11: $Million | F11: CY18 (Mid Period) | I11: =Inputs!I38*Inputs!I$17/_xlfn._xlws.FILTER(Inputs!I$24:I$27,Inputs!$G$24:$G$27=Inputs!$AG38) -> 0.2587717516 | J11: =Inputs!J38*Inputs!J$17/_xlfn._xlws.FILTER(Inputs!J$24:J$27,Inputs!$G$24:$G$27=Inputs!$AG38) -> 0.005314590815 | K11: =Inputs!K38*Inputs!K$17/_xlfn._xlws.FILTER(Inputs!K$24:K$27,Inputs!$G$24:$G$27=Inputs!$AG38) -> 0.02740905737 | L11: =Inputs!L38*Inputs!L$17/_xlfn._xlws.FILTER(Inputs!L$24:L$27,Inputs!$G$24:$G$27=Inputs!$AG38) -> 0 | M11: =Inputs!M38*Inputs!M$17/_xlfn._xlws.FILTER(Inputs!M$24:M$27,Inputs!$G$24:$G$27=Inputs!$AG38) -> 0 | N11: =SUM(I11:M11) -> 0.2914953998 | P11: =Inputs!AD38 -> Data centre | Q11: =Inputs!AH38 -> SCS - Distribution system assets
C12: [c-i-c] | D12: Inputs | E12: $Million | F12: CY18 (Mid Period) | I12: =Inputs!I39*Inputs!I$17/_xlfn._xlws.FILTER(Inputs!I$24:I$27,Inputs!$G$24:$G$27=Inputs!$AG39) -> 0.06951599865 | J12: =Inputs!J39*Inputs!J$17/_xlfn._xlws.FILTER(Inputs!J$24:J$27,Inputs!$G$24:$G$27=Inputs!$AG39) -> 0.2510243259 | K12: =Inputs!K39*Inputs!K$17/_xlfn._xlws.FILTER(Inputs!K$24:K$27,Inputs!$G$24:$G$27=Inputs!$AG39) -> 2.304771274 | L12: =Inputs!L39*Inputs!L$17/_xlfn._xlws.FILTER(Inputs!L$24:L$27,Inputs!$G$24:$G$27=Inputs!$AG39) -> 3.221903511 | M12: =Inputs!M39*Inputs!M$17/_xlfn._xlws.FILTER(Inputs!M$24:M$27,Inputs!$G$24:$G$27=Inputs!$AG39) -> 0 | N12: 5.847215109 | P12: =Inputs!AD39 -> Data centre | Q12: =Inputs!AH39 -> SCS - Distribution system assets
C13: [c-i-c] | D13: Inputs | E13: $Million | F13: CY18 (Mid Period) | I13: =Inputs!I40*Inputs!I$17/_xlfn._xlws.FILTER(Inputs!I$24:I$27,Inputs!$G$24:$G$27=Inputs!$AG40) -> 0 | J13: =Inputs!J40*Inputs!J$17/_xlfn._xlws.FILTER(Inputs!J$24:J$27,Inputs!$G$24:$G$27=Inputs!$AG40) -> 0 | K13: =Inputs!K40*Inputs!K$17/_xlfn._xlws.FILTER(Inputs!K$24:K$27,Inputs!$G$24:$G$27=Inputs!$AG40) -> 0.00213308566 | L13: =Inputs!L40*Inputs!L$17/_xlfn._xlws.FILTER(Inputs!L$24:L$27,Inputs!$G$24:$G$27=Inputs!$AG40) -> 0.9051703072 | M13: =Inputs!M40*Inputs!M$17/_xlfn._xlws.FILTER(Inputs!M$24:M$27,Inputs!$G$24:$G$27=Inputs!$AG40) -> 2.102137306 | N13: 3.009440699 | P13: =Inputs!AD40 -> Data centre | Q13: =Inputs!AH40 -> SCS - Subtransmission
C14: [c-i-c] | D14: Inputs | E14: $Million | F14: CY18 (Mid Period) | I14: =Inputs!I41*Inputs!I$17/_xlfn._xlws.FILTER(Inputs!I$24:I$27,Inputs!$G$24:$G$27=Inputs!$AG41) -> 0 | J14: =Inputs!J41*Inputs!J$17/_xlfn._xlws.FILTER(Inputs!J$24:J$27,Inputs!$G$24:$G$27=Inputs!$AG41) -> 0 | K14: =Inputs!K41*Inputs!K$17/_xlfn._xlws.FILTER(Inputs!K$24:K$27,Inputs!$G$24:$G$27=Inputs!$AG41) -> 0.002467250721 | L14: =Inputs!L41*Inputs!L$17/_xlfn._xlws.FILTER(Inputs!L$24:L$27,Inputs!$G$24:$G$27=Inputs!$AG41) -> 4.841201426 | M14: =Inputs!M41*Inputs!M$17/_xlfn._xlws.FILTER(Inputs!M$24:M$27,Inputs!$G$24:$G$27=Inputs!$AG41) -> 13.45588053 | N14: 18.29954921 | P14: =Inputs!AD41 -> Data centre | Q14: =Inputs!AH41 -> SCS - Subtransmission
C15: [c-i-c] | D15: Inputs | E15: $Million | F15: CY18 (Mid Period) | I15: =Inputs!I42*Inputs!I$17/_xlfn._xlws.FILTER(Inputs!I$24:I$27,Inputs!$G$24:$G$27=Inputs!$AG42) -> 0 | J15: =Inputs!J42*Inputs!J$17/_xlfn._xlws.FILTER(Inputs!J$24:J$27,Inputs!$G$24:$G$27=Inputs!$AG42) -> 0 | K15: =Inputs!K42*Inputs!K$17/_xlfn._xlws.FILTER(Inputs!K$24:K$27,Inputs!$G$24:$G$27=Inputs!$AG42) -> 1.251086432 | L15: =Inputs!L42*Inputs!L$17/_xlfn._xlws.FILTER(Inputs!L$24:L$27,Inputs!$G$24:$G$27=Inputs!$AG42) -> 2.018829834 | M15: =Inputs!M42*Inputs!M$17/_xlfn._xlws.FILTER(Inputs!M$24:M$27,Inputs!$G$24:$G$27=Inputs!$AG42) -> 0 | N15: 3.269916266 | P15: =Inputs!AD42 -> Data centre | Q15: =Inputs!AH42 -> SCS - Distribution system assets
C16: [c-i-c] | D16: Inputs | E16: $Million | F16: CY18 (Mid Period) | I16: =Inputs!I43*Inputs!I$17/_xlfn._xlws.FILTER(Inputs!I$24:I$27,Inputs!$G$24:$G$27=Inputs!$AG43) -> 0.2486172725 | J16: =Inputs!J43*Inputs!J$17/_xlfn._xlws.FILTER(Inputs!J$24:J$27,Inputs!$G$24:$G$27=Inputs!$AG43) -> 0.1195984531 | K16: =Inputs!K43*Inputs!K$17/_xlfn._xlws.FILTER(Inputs!K$24:K$27,Inputs!$G$24:$G$27=Inputs!$AG43) -> 4.796852115 | L16: =Inputs!L43*Inputs!L$17/_xlfn._xlws.FILTER(Inputs!L$24:L$27,Inputs!$G$24:$G$27=Inputs!$AG43) -> 13.87052507 | M16: =Inputs!M43*Inputs!M$17/_xlfn._xlws.FILTER(Inputs!M$24:M$27,Inputs!$G$24:$G$27=Inputs!$AG43) -> 4.583324592 | N16: 23.6189175 | P16: =Inputs!AD43 -> Data centre | Q16: =Inputs!AH43 -> SCS - Distribution system assets
C17: [c-i-c] | D17: Inputs | E17: $Million | F17: CY18 (Mid Period) | I17: =Inputs!I44*Inputs!I$17/_xlfn._xlws.FILTER(Inputs!I$24:I$27,Inputs!$G$24:$G$27=Inputs!$AG44) -> 0 | J17: =Inputs!J44*Inputs!J$17/_xlfn._xlws.FILTER(Inputs!J$24:J$27,Inputs!$G$24:$G$27=Inputs!$AG44) -> 0 | K17: =Inputs!K44*Inputs!K$17/_xlfn._xlws.FILTER(Inputs!K$24:K$27,Inputs!$G$24:$G$27=Inputs!$AG44) -> 0.0265422842 | L17: =Inputs!L44*Inputs!L$17/_xlfn._xlws.FILTER(Inputs!L$24:L$27,Inputs!$G$24:$G$27=Inputs!$AG44) -> 2.150420613 | M17: =Inputs!M44*Inputs!M$17/_xlfn._xlws.FILTER(Inputs!M$24:M$27,Inputs!$G$24:$G$27=Inputs!$AG44) -> 3.463049951 | N17: 5.640012849 | P17: =Inputs!AD44 -> Data centre | Q17: =Inputs!AH44 -> SCS - Subtransmission
C18: [c-i-c] | D18: Inputs | E18: $Million | F18: CY18 (Mid Period) | I18: =Inputs!I45*Inputs!I$17/_xlfn._xlws.FILTER(Inputs!I$24:I$27,Inputs!$G$24:$G$27=Inputs!$AG45) -> 0 | J18: =Inputs!J45*Inputs!J$17/_xlfn._xlws.FILTER(Inputs!J$24:J$27,Inputs!$G$24:$G$27=Inputs!$AG45) -> 0 | K18: =Inputs!K45*Inputs!K$17/_xlfn._xlws.FILTER(Inputs!K$24:K$27,Inputs!$G$24:$G$27=Inputs!$AG45) -> 0 | L18: =Inputs!L45*Inputs!L$17/_xlfn._xlws.FILTER(Inputs!L$24:L$27,Inputs!$G$24:$G$27=Inputs!$AG45) -> 2.171984452 | M18: =Inputs!M45*Inputs!M$17/_xlfn._xlws.FILTER(Inputs!M$24:M$27,Inputs!$G$24:$G$27=Inputs!$AG45) -> 5.391705126 | N18: 7.563689578 | P18: =Inputs!AD45 -> Data centre | Q18: =Inputs!AH45 -> SCS - Subtransmission
C19: [c-i-c] | D19: Inputs | E19: $Million | F19: CY18 (Mid Period) | I19: =Inputs!I46*Inputs!I$17/_xlfn._xlws.FILTER(Inputs!I$24:I$27,Inputs!$G$24:$G$27=Inputs!$AG46) -> 0.0334488793 | J19: =Inputs!J46*Inputs!J$17/_xlfn._xlws.FILTER(Inputs!J$24:J$27,Inputs!$G$24:$G$27=Inputs!$AG46) -> 0.9222564813 | K19: =Inputs!K46*Inputs!K$17/_xlfn._xlws.FILTER(Inputs!K$24:K$27,Inputs!$G$24:$G$27=Inputs!$AG46) -> 3.466138713 | L19: =Inputs!L46*Inputs!L$17/_xlfn._xlws.FILTER(Inputs!L$24:L$27,Inputs!$G$24:$G$27=Inputs!$AG46) -> 0.007775543562 | M19: =Inputs!M46*Inputs!M$17/_xlfn._xlws.FILTER(Inputs!M$24:M$27,Inputs!$G$24:$G$27=Inputs!$AG46) -> 0 | N19: 4.429619618 | P19: =Inputs!AD46 -> Data centre | Q19: =Inputs!AH46 -> SCS - Distribution system assets
C20: [c-i-c] | D20: Inputs | E20: $Million | F20: CY18 (Mid Period) | I20: =Inputs!I47*Inputs!I$17/_xlfn._xlws.FILTER(Inputs!I$24:I$27,Inputs!$G$24:$G$27=Inputs!$AG47) -> 0.8819522688 | J20: =Inputs!J47*Inputs!J$17/_xlfn._xlws.FILTER(Inputs!J$24:J$27,Inputs!$G$24:$G$27=Inputs!$AG47) -> 7.681279364 | K20: =Inputs!K47*Inputs!K$17/_xlfn._xlws.FILTER(Inputs!K$24:K$27,Inputs!$G$24:$G$27=Inputs!$AG47) -> 8.921192217 | L20: =Inputs!L47*Inputs!L$17/_xlfn._xlws.FILTER(Inputs!L$24:L$27,Inputs!$G$24:$G$27=Inputs!$AG47) -> 1.338781283 | M20: =Inputs!M47*Inputs!M$17/_xlfn._xlws.FILTER(Inputs!M$24:M$27,Inputs!$G$24:$G$27=Inputs!$AG47) -> 0 | N20: 18.82320513 | P20: =Inputs!AD47 -> Data centre | Q20: =Inputs!AH47 -> SCS - Distribution system assets
C21: [c-i-c] | D21: Inputs | E21: $Million | F21: CY18 (Mid Period) | I21: =Inputs!I48*Inputs!I$17/_xlfn._xlws.FILTER(Inputs!I$24:I$27,Inputs!$G$24:$G$27=Inputs!$AG48) -> 0 | J21: =Inputs!J48*Inputs!J$17/_xlfn._xlws.FILTER(Inputs!J$24:J$27,Inputs!$G$24:$G$27=Inputs!$AG48) -> 0 | K21: =Inputs!K48*Inputs!K$17/_xlfn._xlws.FILTER(Inputs!K$24:K$27,Inputs!$G$24:$G$27=Inputs!$AG48) -> 0 | L21: =Inputs!L48*Inputs!L$17/_xlfn._xlws.FILTER(Inputs!L$24:L$27,Inputs!$G$24:$G$27=Inputs!$AG48) -> 3.842868754 | M21: =Inputs!M48*Inputs!M$17/_xlfn._xlws.FILTER(Inputs!M$24:M$27,Inputs!$G$24:$G$27=Inputs!$AG48) -> 8.030201302 | N21: 11.87307006 | P21: =Inputs!AD48 -> Data centre | Q21: =Inputs!AH48 -> SCS - Distribution system assets
C22: [c-i-c] | D22: Inputs | E22: $Million | F22: CY18 (Mid Period) | I22: =Inputs!I49*Inputs!I$17/_xlfn._xlws.FILTER(Inputs!I$24:I$27,Inputs!$G$24:$G$27=Inputs!$AG49) -> 0 | J22: =Inputs!J49*Inputs!J$17/_xlfn._xlws.FILTER(Inputs!J$24:J$27,Inputs!$G$24:$G$27=Inputs!$AG49) -> 0.02648707328 | K22: =Inputs!K49*Inputs!K$17/_xlfn._xlws.FILTER(Inputs!K$24:K$27,Inputs!$G$24:$G$27=Inputs!$AG49) -> 0.08771315039 | L22: =Inputs!L49*Inputs!L$17/_xlfn._xlws.FILTER(Inputs!L$24:L$27,Inputs!$G$24:$G$27=Inputs!$AG49) -> 3.176160071 | M22: =Inputs!M49*Inputs!M$17/_xlfn._xlws.FILTER(Inputs!M$24:M$27,Inputs!$G$24:$G$27=Inputs!$AG49) -> 8.492735115 | N22: 11.78309541 | P22: =Inputs!AD49 -> Data centre | Q22: =Inputs!AH49 -> SCS - Distribution system assets
C23: [c-i-c] | D23: Inputs | E23: $Million | F23: CY18 (Mid Period) | I23: =Inputs!I50*Inputs!I$17/_xlfn._xlws.FILTER(Inputs!I$24:I$27,Inputs!$G$24:$G$27=Inputs!$AG50) -> 0 | J23: =Inputs!J50*Inputs!J$17/_xlfn._xlws.FILTER(Inputs!J$24:J$27,Inputs!$G$24:$G$27=Inputs!$AG50) -> 0 | K23: =Inputs!K50*Inputs!K$17/_xlfn._xlws.FILTER(Inputs!K$24:K$27,Inputs!$G$24:$G$27=Inputs!$AG50) -> 0.002410978605 | L23: =Inputs!L50*Inputs!L$17/_xlfn._xlws.FILTER(Inputs!L$24:L$27,Inputs!$G$24:$G$27=Inputs!$AG50) -> 0.492415042 | M23: =Inputs!M50*Inputs!M$17/_xlfn._xlws.FILTER(Inputs!M$24:M$27,Inputs!$G$24:$G$27=Inputs!$AG50) -> 1.185899822 | N23: 1.680725843 | P23: =Inputs!AD50 -> Data centre | Q23: =Inputs!AH50 -> SCS - Subtransmission
C24: [c-i-c] | D24: Inputs | E24: $Million | F24: CY18 (Mid Period) | I24: =Inputs!I51*Inputs!I$17/_xlfn._xlws.FILTER(Inputs!I$24:I$27,Inputs!$G$24:$G$27=Inputs!$AG51) -> 0 | J24: =Inputs!J51*Inputs!J$17/_xlfn._xlws.FILTER(Inputs!J$24:J$27,Inputs!$G$24:$G$27=Inputs!$AG51) -> 0.01145788889 | K24: =Inputs!K51*Inputs!K$17/_xlfn._xlws.FILTER(Inputs!K$24:K$27,Inputs!$G$24:$G$27=Inputs!$AG51) -> 0.057092196 | L24: =Inputs!L51*Inputs!L$17/_xlfn._xlws.FILTER(Inputs!L$24:L$27,Inputs!$G$24:$G$27=Inputs!$AG51) -> 0.5462551653 | M24: =Inputs!M51*Inputs!M$17/_xlfn._xlws.FILTER(Inputs!M$24:M$27,Inputs!$G$24:$G$27=Inputs!$AG51) -> 5.19211098 | N24: 5.80691623 | P24: =Inputs!AD51 -> Data centre | Q24: =Inputs!AH51 -> SCS - Distribution system assets
C25: [c-i-c] | D25: Inputs | E25: $Million | F25: CY18 (Mid Period) | I25: =Inputs!I52*Inputs!I$17/_xlfn._xlws.FILTER(Inputs!I$24:I$27,Inputs!$G$24:$G$27=Inputs!$AG52) -> 0 | J25: =Inputs!J52*Inputs!J$17/_xlfn._xlws.FILTER(Inputs!J$24:J$27,Inputs!$G$24:$G$27=Inputs!$AG52) -> 0 | K25: =Inputs!K52*Inputs!K$17/_xlfn._xlws.FILTER(Inputs!K$24:K$27,Inputs!$G$24:$G$27=Inputs!$AG52) -> 0 | L25: =Inputs!L52*Inputs!L$17/_xlfn._xlws.FILTER(Inputs!L$24:L$27,Inputs!$G$24:$G$27=Inputs!$AG52) -> 0 | M25: =Inputs!M52*Inputs!M$17/_xlfn._xlws.FILTER(Inputs!M$24:M$27,Inputs!$G$24:$G$27=Inputs!$AG52) -> 0.7139451379 | N25: 0.7139451379 | P25: =Inputs!AD52 -> Data centre | Q25: =Inputs!AH52 -> SCS - Subtransmission
C26: [c-i-c] | D26: Inputs | E26: $Million | F26: CY18 (Mid Period) | I26: =Inputs!I53*Inputs!I$17/_xlfn._xlws.FILTER(Inputs!I$24:I$27,Inputs!$G$24:$G$27=Inputs!$AG53) -> 0 | J26: =Inputs!J53*Inputs!J$17/_xlfn._xlws.FILTER(Inputs!J$24:J$27,Inputs!$G$24:$G$27=Inputs!$AG53) -> 0.03107043303 | K26: =Inputs!K53*Inputs!K$17/_xlfn._xlws.FILTER(Inputs!K$24:K$27,Inputs!$G$24:$G$27=Inputs!$AG53) -> 1.449375826 | L26: =Inputs!L53*Inputs!L$17/_xlfn._xlws.FILTER(Inputs!L$24:L$27,Inputs!$G$24:$G$27=Inputs!$AG53) -> 6.643500559 | M26: =Inputs!M53*Inputs!M$17/_xlfn._xlws.FILTER(Inputs!M$24:M$27,Inputs!$G$24:$G$27=Inputs!$AG53) -> 8.022908229 | N26: 16.14685505 | P26: =Inputs!AD53 -> Data centre | Q26: =Inputs!AH53 -> SCS - Distribution system assets
C27: [c-i-c] | D27: Inputs | E27: $Million | F27: CY18 (Mid Period) | I27: =Inputs!I54*Inputs!I$17/_xlfn._xlws.FILTER(Inputs!I$24:I$27,Inputs!$G$24:$G$27=Inputs!$AG54) -> 0 | J27: =Inputs!J54*Inputs!J$17/_xlfn._xlws.FILTER(Inputs!J$24:J$27,Inputs!$G$24:$G$27=Inputs!$AG54) -> 0 | K27: =Inputs!K54*Inputs!K$17/_xlfn._xlws.FILTER(Inputs!K$24:K$27,Inputs!$G$24:$G$27=Inputs!$AG54) -> 0 | L27: =Inputs!L54*Inputs!L$17/_xlfn._xlws.FILTER(Inputs!L$24:L$27,Inputs!$G$24:$G$27=Inputs!$AG54) -> 0.6912195888 | M27: =Inputs!M54*Inputs!M$17/_xlfn._xlws.FILTER(Inputs!M$24:M$27,Inputs!$G$24:$G$27=Inputs!$AG54) -> 0.7548464966 | N27: 1.446066085 | P27: =Inputs!AD54 -> Data centre | Q27: =Inputs!AH54 -> SCS - Distribution system assets
C28: [c-i-c] | D28: Inputs | E28: $Million | F28: CY18 (Mid Period) | I28: =Inputs!I55*Inputs!I$17/_xlfn._xlws.FILTER(Inputs!I$24:I$27,Inputs!$G$24:$G$27=Inputs!$AG55) -> 0.06567378601 | J28: =Inputs!J55*Inputs!J$17/_xlfn._xlws.FILTER(Inputs!J$24:J$27,Inputs!$G$24:$G$27=Inputs!$AG55) -> 0.1739332738 | K28: =Inputs!K55*Inputs!K$17/_xlfn._xlws.FILTER(Inputs!K$24:K$27,Inputs!$G$24:$G$27=Inputs!$AG55) -> 0.04403316449 | L28: =Inputs!L55*Inputs!L$17/_xlfn._xlws.FILTER(Inputs!L$24:L$27,Inputs!$G$24:$G$27=Inputs!$AG55) -> 3.998473059 | M28: =Inputs!M55*Inputs!M$17/_xlfn._xlws.FILTER(Inputs!M$24:M$27,Inputs!$G$24:$G$27=Inputs!$AG55) -> 9.404519834 | N28: 13.68663312 | P28: =Inputs!AD55 -> Data centre | Q28: =Inputs!AH55 -> SCS - Distribution system assets
C29: [c-i-c] | D29: Inputs | E29: $Million | F29: CY18 (Mid Period) | I29: =Inputs!I56*Inputs!I$17/_xlfn._xlws.FILTER(Inputs!I$24:I$27,Inputs!$G$24:$G$27=Inputs!$AG56) -> 0 | J29: =Inputs!J56*Inputs!J$17/_xlfn._xlws.FILTER(Inputs!J$24:J$27,Inputs!$G$24:$G$27=Inputs!$AG56) -> 0 | K29: =Inputs!K56*Inputs!K$17/_xlfn._xlws.FILTER(Inputs!K$24:K$27,Inputs!$G$24:$G$27=Inputs!$AG56) -> 0.00350968497 | L29: =Inputs!L56*Inputs!L$17/_xlfn._xlws.FILTER(Inputs!L$24:L$27,Inputs!$G$24:$G$27=Inputs!$AG56) -> 0 | M29: =Inputs!M56*Inputs!M$17/_xlfn._xlws.FILTER(Inputs!M$24:M$27,Inputs!$G$24:$G$27=Inputs!$AG56) -> 0.8549956224 | N29: 0.8585053073 | P29: =Inputs!AD56 -> Data centre | Q29: =Inputs!AH56 -> SCS - Subtransmission
C30: [c-i-c] | D30: Inputs | E30: $Million | F30: CY18 (Mid Period) | I30: =Inputs!I57*Inputs!I$17/_xlfn._xlws.FILTER(Inputs!I$24:I$27,Inputs!$G$24:$G$27=Inputs!$AG57) -> 0 | J30: =Inputs!J57*Inputs!J$17/_xlfn._xlws.FILTER(Inputs!J$24:J$27,Inputs!$G$24:$G$27=Inputs!$AG57) -> 0.002453559839 | K30: =Inputs!K57*Inputs!K$17/_xlfn._xlws.FILTER(Inputs!K$24:K$27,Inputs!$G$24:$G$27=Inputs!$AG57) -> 0.0005042576352 | L30: =Inputs!L57*Inputs!L$17/_xlfn._xlws.FILTER(Inputs!L$24:L$27,Inputs!$G$24:$G$27=Inputs!$AG57) -> 3.973788617 | M30: =Inputs!M57*Inputs!M$17/_xlfn._xlws.FILTER(Inputs!M$24:M$27,Inputs!$G$24:$G$27=Inputs!$AG57) -> 9.649001768 | N30: 13.6257482 | P30: =Inputs!AD57 -> Data centre | Q30: =Inputs!AH57 -> SCS - Subtransmission
C31: [c-i-c] | D31: Inputs | E31: $Million | F31: CY18 (Mid Period) | I31: =Inputs!I58*Inputs!I$17/_xlfn._xlws.FILTER(Inputs!I$24:I$27,Inputs!$G$24:$G$27=Inputs!$AG58) -> 0 | J31: =Inputs!J58*Inputs!J$17/_xlfn._xlws.FILTER(Inputs!J$24:J$27,Inputs!$G$24:$G$27=Inputs!$AG58) -> 0 | K31: =Inputs!K58*Inputs!K$17/_xlfn._xlws.FILTER(Inputs!K$24:K$27,Inputs!$G$24:$G$27=Inputs!$AG58) -> 0 | L31: =Inputs!L58*Inputs!L$17/_xlfn._xlws.FILTER(Inputs!L$24:L$27,Inputs!$G$24:$G$27=Inputs!$AG58) -> 0.492415042 | M31: =Inputs!M58*Inputs!M$17/_xlfn._xlws.FILTER(Inputs!M$24:M$27,Inputs!$G$24:$G$27=Inputs!$AG58) -> 1.185899822 | N31: 1.678314864 | P31: =Inputs!AD58 -> Data centre | Q31: =Inputs!AH58 -> SCS - Subtransmission
C32: [c-i-c] | D32: Inputs | E32: $Million | F32: CY18 (Mid Period) | I32: =Inputs!I59*Inputs!I$17/_xlfn._xlws.FILTER(Inputs!I$24:I$27,Inputs!$G$24:$G$27=Inputs!$AG59) -> 0 | J32: =Inputs!J59*Inputs!J$17/_xlfn._xlws.FILTER(Inputs!J$24:J$27,Inputs!$G$24:$G$27=Inputs!$AG59) -> 0 | K32: =Inputs!K59*Inputs!K$17/_xlfn._xlws.FILTER(Inputs!K$24:K$27,Inputs!$G$24:$G$27=Inputs!$AG59) -> 0 | L32: =Inputs!L59*Inputs!L$17/_xlfn._xlws.FILTER(Inputs!L$24:L$27,Inputs!$G$24:$G$27=Inputs!$AG59) -> 1.448836725 | M32: =Inputs!M59*Inputs!M$17/_xlfn._xlws.FILTER(Inputs!M$24:M$27,Inputs!$G$24:$G$27=Inputs!$AG59) -> 3.53374811 | N32: 4.982584836 | P32: =Inputs!AD59 -> Data centre | Q32: =Inputs!AH59 -> SCS - Subtransmission
C33: [c-i-c] | D33: Inputs | E33: $Million | F33: CY18 (Mid Period) | I33: =Inputs!I60*Inputs!I$17/_xlfn._xlws.FILTER(Inputs!I$24:I$27,Inputs!$G$24:$G$27=Inputs!$AG60) -> 0 | J33: =Inputs!J60*Inputs!J$17/_xlfn._xlws.FILTER(Inputs!J$24:J$27,Inputs!$G$24:$G$27=Inputs!$AG60) -> 0 | K33: =Inputs!K60*Inputs!K$17/_xlfn._xlws.FILTER(Inputs!K$24:K$27,Inputs!$G$24:$G$27=Inputs!$AG60) -> 0.03128024755 | L33: =Inputs!L60*Inputs!L$17/_xlfn._xlws.FILTER(Inputs!L$24:L$27,Inputs!$G$24:$G$27=Inputs!$AG60) -> 2.396713566 | M33: =Inputs!M60*Inputs!M$17/_xlfn._xlws.FILTER(Inputs!M$24:M$27,Inputs!$G$24:$G$27=Inputs!$AG60) -> 8.933103273 | N33: 11.36109709 | P33: =Inputs!AD60 -> Data centre | Q33: =Inputs!AH60 -> SCS - Subtransmission
C34: [c-i-c] | D34: Inputs | E34: $Million | F34: CY18 (Mid Period) | I34: =Inputs!I61*Inputs!I$17/_xlfn._xlws.FILTER(Inputs!I$24:I$27,Inputs!$G$24:$G$27=Inputs!$AG61) -> 0 | J34: =Inputs!J61*Inputs!J$17/_xlfn._xlws.FILTER(Inputs!J$24:J$27,Inputs!$G$24:$G$27=Inputs!$AG61) -> 0 | K34: =Inputs!K61*Inputs!K$17/_xlfn._xlws.FILTER(Inputs!K$24:K$27,Inputs!$G$24:$G$27=Inputs!$AG61) -> 0 | L34: =Inputs!L61*Inputs!L$17/_xlfn._xlws.FILTER(Inputs!L$24:L$27,Inputs!$G$24:$G$27=Inputs!$AG61) -> 0 | M34: =Inputs!M61*Inputs!M$17/_xlfn._xlws.FILTER(Inputs!M$24:M$27,Inputs!$G$24:$G$27=Inputs!$AG61) -> 1.157794206 | N34: 1.157794206 | P34: =Inputs!AD61 -> Data centre | Q34: =Inputs!AH61 -> SCS - Subtransmission
C35: [c-i-c] | D35: Inputs | E35: $Million | F35: CY18 (Mid Period) | I35: =Inputs!I62*Inputs!I$17/_xlfn._xlws.FILTER(Inputs!I$24:I$27,Inputs!$G$24:$G$27=Inputs!$AG62) -> 0 | J35: =Inputs!J62*Inputs!J$17/_xlfn._xlws.FILTER(Inputs!J$24:J$27,Inputs!$G$24:$G$27=Inputs!$AG62) -> 0 | K35: =Inputs!K62*Inputs!K$17/_xlfn._xlws.FILTER(Inputs!K$24:K$27,Inputs!$G$24:$G$27=Inputs!$AG62) -> 0.01287872276 | L35: =Inputs!L62*Inputs!L$17/_xlfn._xlws.FILTER(Inputs!L$24:L$27,Inputs!$G$24:$G$27=Inputs!$AG62) -> 2.288154908 | M35: =Inputs!M62*Inputs!M$17/_xlfn._xlws.FILTER(Inputs!M$24:M$27,Inputs!$G$24:$G$27=Inputs!$AG62) -> 6.080333266 | N35: 8.381366897 | P35: =Inputs!AD62 -> Data centre | Q35: =Inputs!AH62 -> SCS - Distribution system assets
C36: [c-i-c] | D36: Inputs | E36: $Million | F36: CY18 (Mid Period) | I36: =Inputs!I63*Inputs!I$17/_xlfn._xlws.FILTER(Inputs!I$24:I$27,Inputs!$G$24:$G$27=Inputs!$AG63) -> 0 | J36: =Inputs!J63*Inputs!J$17/_xlfn._xlws.FILTER(Inputs!J$24:J$27,Inputs!$G$24:$G$27=Inputs!$AG63) -> 0 | K36: =Inputs!K63*Inputs!K$17/_xlfn._xlws.FILTER(Inputs!K$24:K$27,Inputs!$G$24:$G$27=Inputs!$AG63) -> 0 | L36: =Inputs!L63*Inputs!L$17/_xlfn._xlws.FILTER(Inputs!L$24:L$27,Inputs!$G$24:$G$27=Inputs!$AG63) -> 0.492415042 | M36: =Inputs!M63*Inputs!M$17/_xlfn._xlws.FILTER(Inputs!M$24:M$27,Inputs!$G$24:$G$27=Inputs!$AG63) -> 1.185899822 | N36: 1.678314864 | P36: =Inputs!AD63 -> Data centre | Q36: =Inputs!AH63 -> SCS - Subtransmission
C37: [c-i-c] | D37: Inputs | E37: $Million | F37: CY18 (Mid Period) | I37: =Inputs!I64*Inputs!I$17/_xlfn._xlws.FILTER(Inputs!I$24:I$27,Inputs!$G$24:$G$27=Inputs!$AG64) -> 0 | J37: =Inputs!J64*Inputs!J$17/_xlfn._xlws.FILTER(Inputs!J$24:J$27,Inputs!$G$24:$G$27=Inputs!$AG64) -> 0 | K37: =Inputs!K64*Inputs!K$17/_xlfn._xlws.FILTER(Inputs!K$24:K$27,Inputs!$G$24:$G$27=Inputs!$AG64) -> 0 | L37: =Inputs!L64*Inputs!L$17/_xlfn._xlws.FILTER(Inputs!L$24:L$27,Inputs!$G$24:$G$27=Inputs!$AG64) -> 1.448836725 | M37: =Inputs!M64*Inputs!M$17/_xlfn._xlws.FILTER(Inputs!M$24:M$27,Inputs!$G$24:$G$27=Inputs!$AG64) -> 3.53374811 | N37: =SUM(I37:M37) -> 4.982584836 | P37: =Inputs!AD64 -> Data centre | Q37: =Inputs!AH64 -> SCS - Subtransmission
C38: [c-i-c] | D38: Inputs | E38: $Million | F38: CY18 (Mid Period) | I38: =Inputs!I65*Inputs!I$17/_xlfn._xlws.FILTER(Inputs!I$24:I$27,Inputs!$G$24:$G$27=Inputs!$AG65) -> 0 | J38: =Inputs!J65*Inputs!J$17/_xlfn._xlws.FILTER(Inputs!J$24:J$27,Inputs!$G$24:$G$27=Inputs!$AG65) -> 0 | K38: =Inputs!K65*Inputs!K$17/_xlfn._xlws.FILTER(Inputs!K$24:K$27,Inputs!$G$24:$G$27=Inputs!$AG65) -> 0 | L38: =Inputs!L65*Inputs!L$17/_xlfn._xlws.FILTER(Inputs!L$24:L$27,Inputs!$G$24:$G$27=Inputs!$AG65) -> 4.000120664 | M38: =Inputs!M65*Inputs!M$17/_xlfn._xlws.FILTER(Inputs!M$24:M$27,Inputs!$G$24:$G$27=Inputs!$AG65) -> 9.600289594 | N38: 13.60041026 | P38: =Inputs!AD65 -> Data centre | Q38: =Inputs!AH65 -> SCS - Distribution system assets
C39: [c-i-c] | D39: Inputs | E39: $Million | F39: CY18 (Mid Period) | I39: =Inputs!I66*Inputs!I$17/_xlfn._xlws.FILTER(Inputs!I$24:I$27,Inputs!$G$24:$G$27=Inputs!$AG66) -> 0 | J39: =Inputs!J66*Inputs!J$17/_xlfn._xlws.FILTER(Inputs!J$24:J$27,Inputs!$G$24:$G$27=Inputs!$AG66) -> 0 | K39: =Inputs!K66*Inputs!K$17/_xlfn._xlws.FILTER(Inputs!K$24:K$27,Inputs!$G$24:$G$27=Inputs!$AG66) -> 0 | L39: =Inputs!L66*Inputs!L$17/_xlfn._xlws.FILTER(Inputs!L$24:L$27,Inputs!$G$24:$G$27=Inputs!$AG66) -> 0.492415042 | M39: =Inputs!M66*Inputs!M$17/_xlfn._xlws.FILTER(Inputs!M$24:M$27,Inputs!$G$24:$G$27=Inputs!$AG66) -> 1.185899822 | N39: =SUM(I39:M39) -> 1.678314864 | P39: =Inputs!AD66 -> Data centre | Q39: =Inputs!AH66 -> SCS - Subtransmission
C40: [c-i-c] | D40: Inputs | E40: $Million | F40: CY18 (Mid Period) | I40: =Inputs!I67*Inputs!I$17/_xlfn._xlws.FILTER(Inputs!I$24:I$27,Inputs!$G$24:$G$27=Inputs!$AG67) -> 1.03796736 | J40: =Inputs!J67*Inputs!J$17/_xlfn._xlws.FILTER(Inputs!J$24:J$27,Inputs!$G$24:$G$27=Inputs!$AG67) -> 0.06923371164 | K40: =Inputs!K67*Inputs!K$17/_xlfn._xlws.FILTER(Inputs!K$24:K$27,Inputs!$G$24:$G$27=Inputs!$AG67) -> 0 | L40: =Inputs!L67*Inputs!L$17/_xlfn._xlws.FILTER(Inputs!L$24:L$27,Inputs!$G$24:$G$27=Inputs!$AG67) -> 0 | M40: =Inputs!M67*Inputs!M$17/_xlfn._xlws.FILTER(Inputs!M$24:M$27,Inputs!$G$24:$G$27=Inputs!$AG67) -> 0 | N40: 1.107201072 | P40: =Inputs!AD67 -> Major infrastructure project | Q40: =Inputs!AH67 -> SCS - Distribution system assets
C41: [c-i-c] | D41: Inputs | E41: $Million | F41: CY18 (Mid Period) | I41: =Inputs!I68*Inputs!I$17/_xlfn._xlws.FILTER(Inputs!I$24:I$27,Inputs!$G$24:$G$27=Inputs!$AG68) -> 0.09334346658 | J41: =Inputs!J68*Inputs!J$17/_xlfn._xlws.FILTER(Inputs!J$24:J$27,Inputs!$G$24:$G$27=Inputs!$AG68) -> 0.01929568494 | K41: =Inputs!K68*Inputs!K$17/_xlfn._xlws.FILTER(Inputs!K$24:K$27,Inputs!$G$24:$G$27=Inputs!$AG68) -> 0 | L41: =Inputs!L68*Inputs!L$17/_xlfn._xlws.FILTER(Inputs!L$24:L$27,Inputs!$G$24:$G$27=Inputs!$AG68) -> 0 | M41: =Inputs!M68*Inputs!M$17/_xlfn._xlws.FILTER(Inputs!M$24:M$27,Inputs!$G$24:$G$27=Inputs!$AG68) -> 0 | N41: 0.1126391515 | P41: =Inputs!AD68 -> Major infrastructure project | Q41: =Inputs!AH68 -> SCS - Distribution system assets
C42: [c-i-c] | D42: Inputs | E42: $Million | F42: CY18 (Mid Period) | I42: =Inputs!I69*Inputs!I$17/_xlfn._xlws.FILTER(Inputs!I$24:I$27,Inputs!$G$24:$G$27=Inputs!$AG69) -> 5.147212841 | J42: =Inputs!J69*Inputs!J$17/_xlfn._xlws.FILTER(Inputs!J$24:J$27,Inputs!$G$24:$G$27=Inputs!$AG69) -> 5.198359324 | K42: =Inputs!K69*Inputs!K$17/_xlfn._xlws.FILTER(Inputs!K$24:K$27,Inputs!$G$24:$G$27=Inputs!$AG69) -> 0.01391510581 | L42: =Inputs!L69*Inputs!L$17/_xlfn._xlws.FILTER(Inputs!L$24:L$27,Inputs!$G$24:$G$27=Inputs!$AG69) -> 0 | M42: =Inputs!M69*Inputs!M$17/_xlfn._xlws.FILTER(Inputs!M$24:M$27,Inputs!$G$24:$G$27=Inputs!$AG69) -> 0 | N42: 10.35948727 | P42: =Inputs!AD69 -> Major infrastructure project | Q42: =Inputs!AH69 -> SCS - Distribution system assets
C43: [c-i-c] | D43: Inputs | E43: $Million | F43: CY18 (Mid Period) | I43: =Inputs!I70*Inputs!I$17/_xlfn._xlws.FILTER(Inputs!I$24:I$27,Inputs!$G$24:$G$27=Inputs!$AG70) -> 0 | J43: =Inputs!J70*Inputs!J$17/_xlfn._xlws.FILTER(Inputs!J$24:J$27,Inputs!$G$24:$G$27=Inputs!$AG70) -> 0 | K43: =Inputs!K70*Inputs!K$17/_xlfn._xlws.FILTER(Inputs!K$24:K$27,Inputs!$G$24:$G$27=Inputs!$AG70) -> 2.371387974 | L43: =Inputs!L70*Inputs!L$17/_xlfn._xlws.FILTER(Inputs!L$24:L$27,Inputs!$G$24:$G$27=Inputs!$AG70) -> 1.164704048 | M43: =Inputs!M70*Inputs!M$17/_xlfn._xlws.FILTER(Inputs!M$24:M$27,Inputs!$G$24:$G$27=Inputs!$AG70) -> 0 | N43: 3.536092022 | P43: =Inputs!AD70 -> Major infrastructure project | Q43: =Inputs!AH70 -> SCS - Distribution system assets
C44: [c-i-c] | D44: Inputs | E44: $Million | F44: CY18 (Mid Period) | I44: =Inputs!I71*Inputs!I$17/_xlfn._xlws.FILTER(Inputs!I$24:I$27,Inputs!$G$24:$G$27=Inputs!$AG71) -> 0 | J44: =Inputs!J71*Inputs!J$17/_xlfn._xlws.FILTER(Inputs!J$24:J$27,Inputs!$G$24:$G$27=Inputs!$AG71) -> 0.08117977799 | K44: =Inputs!K71*Inputs!K$17/_xlfn._xlws.FILTER(Inputs!K$24:K$27,Inputs!$G$24:$G$27=Inputs!$AG71) -> 0.03833856638 | L44: =Inputs!L71*Inputs!L$17/_xlfn._xlws.FILTER(Inputs!L$24:L$27,Inputs!$G$24:$G$27=Inputs!$AG71) -> 0.01515356183 | M44: =Inputs!M71*Inputs!M$17/_xlfn._xlws.FILTER(Inputs!M$24:M$27,Inputs!$G$24:$G$27=Inputs!$AG71) -> 0 | N44: =SUM(I44:M44) -> 0.1346719062 | P44: =Inputs!AD71 -> Major infrastructure project | Q44: =Inputs!AH71 -> SCS - Distribution system assets
C45: [c-i-c] | D45: Inputs | E45: $Million | F45: CY18 (Mid Period) | I45: =Inputs!I72*Inputs!I$17/_xlfn._xlws.FILTER(Inputs!I$24:I$27,Inputs!$G$24:$G$27=Inputs!$AG72) -> 0 | J45: =Inputs!J72*Inputs!J$17/_xlfn._xlws.FILTER(Inputs!J$24:J$27,Inputs!$G$24:$G$27=Inputs!$AG72) -> 0.002407688684 | K45: =Inputs!K72*Inputs!K$17/_xlfn._xlws.FILTER(Inputs!K$24:K$27,Inputs!$G$24:$G$27=Inputs!$AG72) -> 0.02038723963 | L45: =Inputs!L72*Inputs!L$17/_xlfn._xlws.FILTER(Inputs!L$24:L$27,Inputs!$G$24:$G$27=Inputs!$AG72) -> 0.8315675243 | M45: =Inputs!M72*Inputs!M$17/_xlfn._xlws.FILTER(Inputs!M$24:M$27,Inputs!$G$24:$G$27=Inputs!$AG72) -> 0.5602862614 | N45: 1.414648714 | P45: =Inputs!AD72 -> Major infrastructure project | Q45: =Inputs!AH72 -> SCS - Distribution system assets
C46: [c-i-c] | D46: Inputs | E46: $Million | F46: CY18 (Mid Period) | I46: =Inputs!I73*Inputs!I$17/_xlfn._xlws.FILTER(Inputs!I$24:I$27,Inputs!$G$24:$G$27=Inputs!$AG73) -> 0 | J46: =Inputs!J73*Inputs!J$17/_xlfn._xlws.FILTER(Inputs!J$24:J$27,Inputs!$G$24:$G$27=Inputs!$AG73) -> 0 | K46: =Inputs!K73*Inputs!K$17/_xlfn._xlws.FILTER(Inputs!K$24:K$27,Inputs!$G$24:$G$27=Inputs!$AG73) -> 0.008507679665 | L46: =Inputs!L73*Inputs!L$17/_xlfn._xlws.FILTER(Inputs!L$24:L$27,Inputs!$G$24:$G$27=Inputs!$AG73) -> 2.423842105 | M46: =Inputs!M73*Inputs!M$17/_xlfn._xlws.FILTER(Inputs!M$24:M$27,Inputs!$G$24:$G$27=Inputs!$AG73) -> 4.074065889 | N46: 6.506415674 | P46: =Inputs!AD73 -> Major infrastructure project | Q46: =Inputs!AH73 -> SCS - Distribution system assets
C47: [c-i-c] | D47: Inputs | E47: $Million | F47: CY18 (Mid Period) | I47: =Inputs!I74*Inputs!I$17/_xlfn._xlws.FILTER(Inputs!I$24:I$27,Inputs!$G$24:$G$27=Inputs!$AG74) -> 0 | J47: =Inputs!J74*Inputs!J$17/_xlfn._xlws.FILTER(Inputs!J$24:J$27,Inputs!$G$24:$G$27=Inputs!$AG74) -> 0 | K47: =Inputs!K74*Inputs!K$17/_xlfn._xlws.FILTER(Inputs!K$24:K$27,Inputs!$G$24:$G$27=Inputs!$AG74) -> 0 | L47: =Inputs!L74*Inputs!L$17/_xlfn._xlws.FILTER(Inputs!L$24:L$27,Inputs!$G$24:$G$27=Inputs!$AG74) -> 0.001078690603 | M47: =Inputs!M74*Inputs!M$17/_xlfn._xlws.FILTER(Inputs!M$24:M$27,Inputs!$G$24:$G$27=Inputs!$AG74) -> 4.997745979 | N47: 4.99882467 | P47: =Inputs!AD74 -> Major infrastructure project | Q47: =Inputs!AH74 -> SCS - Distribution system assets
C48: [c-i-c] | D48: Inputs | E48: $Million | F48: CY18 (Mid Period) | I48: =Inputs!I75*Inputs!I$17/_xlfn._xlws.FILTER(Inputs!I$24:I$27,Inputs!$G$24:$G$27=Inputs!$AG75) -> 0 | J48: =Inputs!J75*Inputs!J$17/_xlfn._xlws.FILTER(Inputs!J$24:J$27,Inputs!$G$24:$G$27=Inputs!$AG75) -> 0 | K48: =Inputs!K75*Inputs!K$17/_xlfn._xlws.FILTER(Inputs!K$24:K$27,Inputs!$G$24:$G$27=Inputs!$AG75) -> 0.05804369552 | L48: =Inputs!L75*Inputs!L$17/_xlfn._xlws.FILTER(Inputs!L$24:L$27,Inputs!$G$24:$G$27=Inputs!$AG75) -> 1.591273656 | M48: =Inputs!M75*Inputs!M$17/_xlfn._xlws.FILTER(Inputs!M$24:M$27,Inputs!$G$24:$G$27=Inputs!$AG75) -> 2.205126878 | N48: 3.85444423 | P48: =Inputs!AD75 -> Major infrastructure project | Q48: =Inputs!AH75 -> SCS - Distribution system assets
C49: [c-i-c] | D49: Inputs | E49: $Million | F49: CY18 (Mid Period) | I49: =Inputs!I76*Inputs!I$17/_xlfn._xlws.FILTER(Inputs!I$24:I$27,Inputs!$G$24:$G$27=Inputs!$AG76) -> 0 | J49: =Inputs!J76*Inputs!J$17/_xlfn._xlws.FILTER(Inputs!J$24:J$27,Inputs!$G$24:$G$27=Inputs!$AG76) -> 0 | K49: =Inputs!K76*Inputs!K$17/_xlfn._xlws.FILTER(Inputs!K$24:K$27,Inputs!$G$24:$G$27=Inputs!$AG76) -> 0.08465465113 | L49: =Inputs!L76*Inputs!L$17/_xlfn._xlws.FILTER(Inputs!L$24:L$27,Inputs!$G$24:$G$27=Inputs!$AG76) -> 0.01720575592 | M49: =Inputs!M76*Inputs!M$17/_xlfn._xlws.FILTER(Inputs!M$24:M$27,Inputs!$G$24:$G$27=Inputs!$AG76) -> 0 | N49: 0.101860407 | P49: =Inputs!AD76 -> Major infrastructure project | Q49: =Inputs!AH76 -> SCS - Distribution system assets
C50: [c-i-c] | D50: Inputs | E50: $Million | F50: CY18 (Mid Period) | I50: =Inputs!I77*Inputs!I$17/_xlfn._xlws.FILTER(Inputs!I$24:I$27,Inputs!$G$24:$G$27=Inputs!$AG77) -> 0 | J50: =Inputs!J77*Inputs!J$17/_xlfn._xlws.FILTER(Inputs!J$24:J$27,Inputs!$G$24:$G$27=Inputs!$AG77) -> 0.0006877847324 | K50: =Inputs!K77*Inputs!K$17/_xlfn._xlws.FILTER(Inputs!K$24:K$27,Inputs!$G$24:$G$27=Inputs!$AG77) -> 0.02979292026 | L50: =Inputs!L77*Inputs!L$17/_xlfn._xlws.FILTER(Inputs!L$24:L$27,Inputs!$G$24:$G$27=Inputs!$AG77) -> 0.1947730475 | M50: =Inputs!M77*Inputs!M$17/_xlfn._xlws.FILTER(Inputs!M$24:M$27,Inputs!$G$24:$G$27=Inputs!$AG77) -> 2.154227803 | N50: 2.379481556 | P50: =Inputs!AD77 -> Major infrastructure project | Q50: =Inputs!AH77 -> SCS - Subtransmission
C51: [c-i-c] | D51: Inputs | E51: $Million | F51: CY18 (Mid Period) | I51: =Inputs!I78*Inputs!I$17/_xlfn._xlws.FILTER(Inputs!I$24:I$27,Inputs!$G$24:$G$27=Inputs!$AG78) -> 0 | J51: =Inputs!J78*Inputs!J$17/_xlfn._xlws.FILTER(Inputs!J$24:J$27,Inputs!$G$24:$G$27=Inputs!$AG78) -> 0 | K51: =Inputs!K78*Inputs!K$17/_xlfn._xlws.FILTER(Inputs!K$24:K$27,Inputs!$G$24:$G$27=Inputs!$AG78) -> 0.06089111786 | L51: =Inputs!L78*Inputs!L$17/_xlfn._xlws.FILTER(Inputs!L$24:L$27,Inputs!$G$24:$G$27=Inputs!$AG78) -> 1.733062864 | M51: =Inputs!M78*Inputs!M$17/_xlfn._xlws.FILTER(Inputs!M$24:M$27,Inputs!$G$24:$G$27=Inputs!$AG78) -> 2.398071446 | N51: 4.192025428 | P51: =Inputs!AD78 -> Major infrastructure project | Q51: =Inputs!AH78 -> SCS - Distribution system assets
C53: Total Connection Projects | D53: Calculated | E53: $Million | F53: CY18 (Mid Period) | I53: =SUM(I11:I52) -> 7.836503625 | J53: 14.59603942 | K53: 25.17330961 | L53: 74.92384187 | M53: 134.0835021 | N53: 256.6131966
A55: =IF(SUM(I55:N55)=0,"Ok","Check") -> Ok | C55: Check: No errors | I55: =+IF(COUNT(ISERROR(I11:I52))=0,0,1) -> 0 | J55: =+IF(COUNT(ISERROR(J11:J52))=0,0,1) -> 0 | K55: =+IF(COUNT(ISERROR(K11:K52))=0,0,1) -> 0 | L55: =+IF(COUNT(ISERROR(L11:L52))=0,0,1) -> 0 | M55: =+IF(COUNT(ISERROR(M11:M52))=0,0,1) -> 0 | N55: =+IF(COUNT(ISERROR(N11:N52))=0,0,1) -> 0
C58: Data Centres
C60: Distribution connected | D60: Calculated | E60: $Million | F60: CY18 (Mid Period) | I60: =SUMIFS(I$11:I$52,$P$11:$P$52,$P60,$Q$11:$Q$52,$Q60) -> 1.557979957 | J60: 9.222421885 | K60: 22.41854287 | L60: 45.64456801 | M60: 60.16126941 | N60: =SUM(I60:M60) -> 139.0047821 | P60: Data centre | Q60: SCS - Distribution system assets
C61: Subtransmission connected | D61: Calculated | E61: $Million | F61: CY18 (Mid Period) | I61: 0 | J61: 0.002453559839 | K61: 0.06884778933 | L61: 21.3066126 | M61: 57.53270844 | N61: =SUM(I61:M61) -> 78.91062238 | P61: Data centre | Q61: SCS - Subtransmission
C63: Total Data Centre Connections | D63: Calculated | E63: $Million | F63: CY18 (Mid Period) | I63: =SUM(I60:I61) -> 1.557979957 | J63: 9.224875444 | K63: 22.48739066 | L63: 66.95118061 | M63: 117.6939778 | N63: 217.9154045
C65: Major Infrastructure Projects
C67: Distribution connected | D67: Calculated | E67: $Million | F67: CY18 (Mid Period) | I67: =SUMIFS(I$11:I$52,$P$11:$P$52,"<>"&$P60,$Q$11:$Q$52,$Q67) -> 6.278523668 | J67: 5.370476188 | K67: 2.65612603 | L67: 7.777888206 | M67: 14.23529645 | N67: =SUM(I67:M67) -> 36.31831055 | Q67: SCS - Distribution system assets
C68: Subtransmission connected | D68: Calculated | E68: $Million | F68: CY18 (Mid Period) | I68: 0 | J68: 0.0006877847324 | K68: 0.02979292026 | L68: 0.1947730475 | M68: 2.154227803 | N68: =SUM(I68:M68) -> 2.379481556 | Q68: SCS - Subtransmission
C70: Total Major Infrastructure Projects | D70: Calculated | E70: $Million | F70: CY18 (Mid Period) | I70: =SUM(I67:I68) -> 6.278523668 | J70: 5.371163972 | K70: 2.685918951 | L70: 7.972661254 | M70: 16.38952426 | N70: 38.6977921
A72: =IF(SUM(I72:N72)=0,"Ok","Check") -> Ok | C72: Check: Totals balance | I72: =+IF(ROUND(I53-I63-I70,10)=0,0,1) -> 0 | J72: 0 | K72: 0 | L72: 0 | M72: 0 | N72: 0
B75: Calc | Augmentation Projects
C77: Projects | D77: =+D$3 -> Source | E77: =+E$3 -> Unit | F77: =+F$3 -> Basis | I77: ="RY"&RIGHT(I$3,2) -> RY22 | J77: ="RY"&RIGHT(J$3,2) -> RY23 | K77: ="RY"&RIGHT(K$3,2) -> RY24 | L77: ="RY"&RIGHT(L$3,2) -> RY25 | M77: ="RY"&RIGHT(M$3,2) -> RY26 | N77: Total | Q77: Asset Class
C79: =Inputs!C91 -> Augex - DC11&DC20 - ST-SSS 66kV line extension | D79: Inputs | E79: $Million | F79: CY18 (Mid Period) | I79: =Inputs!I91*Inputs!I$17/_xlfn._xlws.FILTER(Inputs!I$24:I$27,Inputs!$G$24:$G$27=Inputs!$AG91) -> 0 | J79: =Inputs!J91*Inputs!J$17/_xlfn._xlws.FILTER(Inputs!J$24:J$27,Inputs!$G$24:$G$27=Inputs!$AG91) -> 0 | K79: =Inputs!K91*Inputs!K$17/_xlfn._xlws.FILTER(Inputs!K$24:K$27,Inputs!$G$24:$G$27=Inputs!$AG91) -> 0.08690492028 | L79: =Inputs!L91*Inputs!L$17/_xlfn._xlws.FILTER(Inputs!L$24:L$27,Inputs!$G$24:$G$27=Inputs!$AG91) -> 3.389083363 | M79: =Inputs!M91*Inputs!M$17/_xlfn._xlws.FILTER(Inputs!M$24:M$27,Inputs!$G$24:$G$27=Inputs!$AG91) -> 4.525764042 | N79: =SUM(I79:M79) -> 8.001752326 | Q79: =Inputs!AH91 -> SCS - Subtransmission
C80: =Inputs!C92 -> Augex - DC12&DC18&DC01 - augment KTS-AW | D80: Inputs | E80: $Million | F80: CY18 (Mid Period) | I80: =Inputs!I92*Inputs!I$17/_xlfn._xlws.FILTER(Inputs!I$24:I$27,Inputs!$G$24:$G$27=Inputs!$AG92) -> 0 | J80: =Inputs!J92*Inputs!J$17/_xlfn._xlws.FILTER(Inputs!J$24:J$27,Inputs!$G$24:$G$27=Inputs!$AG92) -> 0 | K80: =Inputs!K92*Inputs!K$17/_xlfn._xlws.FILTER(Inputs!K$24:K$27,Inputs!$G$24:$G$27=Inputs!$AG92) -> 0.003787577914 | L80: =Inputs!L92*Inputs!L$17/_xlfn._xlws.FILTER(Inputs!L$24:L$27,Inputs!$G$24:$G$27=Inputs!$AG92) -> 0 | M80: =Inputs!M92*Inputs!M$17/_xlfn._xlws.FILTER(Inputs!M$24:M$27,Inputs!$G$24:$G$27=Inputs!$AG92) -> 1.722623977 | N80: =SUM(I80:M80) -> 1.726411555 | Q80: =Inputs!AH92 -> SCS - Subtransmission
C81: =Inputs!C93 -> Augex - DC02&DC09 - New 66kV line incomer at FW | D81: Inputs | E81: $Million | F81: CY18 (Mid Period) | I81: =Inputs!I93*Inputs!I$17/_xlfn._xlws.FILTER(Inputs!I$24:I$27,Inputs!$G$24:$G$27=Inputs!$AG93) -> 0 | J81: =Inputs!J93*Inputs!J$17/_xlfn._xlws.FILTER(Inputs!J$24:J$27,Inputs!$G$24:$G$27=Inputs!$AG93) -> 0 | K81: =Inputs!K93*Inputs!K$17/_xlfn._xlws.FILTER(Inputs!K$24:K$27,Inputs!$G$24:$G$27=Inputs!$AG93) -> 0.002009577684 | L81: =Inputs!L93*Inputs!L$17/_xlfn._xlws.FILTER(Inputs!L$24:L$27,Inputs!$G$24:$G$27=Inputs!$AG93) -> 0 | M81: =Inputs!M93*Inputs!M$17/_xlfn._xlws.FILTER(Inputs!M$24:M$27,Inputs!$G$24:$G$27=Inputs!$AG93) -> 0.8188089358 | N81: 0.8208185135 | Q81: =Inputs!AH93 -> SCS - Subtransmission
C82: =Inputs!C94 -> Augex - DC02&DC09 - Tie TH-FW 66kV loops | D82: Inputs | E82: $Million | F82: CY18 (Mid Period) | I82: =Inputs!I94*Inputs!I$17/_xlfn._xlws.FILTER(Inputs!I$24:I$27,Inputs!$G$24:$G$27=Inputs!$AG94) -> 0 | J82: =Inputs!J94*Inputs!J$17/_xlfn._xlws.FILTER(Inputs!J$24:J$27,Inputs!$G$24:$G$27=Inputs!$AG94) -> 0 | K82: =Inputs!K94*Inputs!K$17/_xlfn._xlws.FILTER(Inputs!K$24:K$27,Inputs!$G$24:$G$27=Inputs!$AG94) -> 0 | L82: =Inputs!L94*Inputs!L$17/_xlfn._xlws.FILTER(Inputs!L$24:L$27,Inputs!$G$24:$G$27=Inputs!$AG94) -> 0.6972719109 | M82: =Inputs!M94*Inputs!M$17/_xlfn._xlws.FILTER(Inputs!M$24:M$27,Inputs!$G$24:$G$27=Inputs!$AG94) -> 1.700663197 | N82: 2.397935108 | Q82: =Inputs!AH94 -> SCS - Subtransmission
C84: Total Augmentation Projects | D84: Calculated | E84: $Million | F84: CY18 (Mid Period) | I84: =SUM(I79:I83) -> 0 | J84: 0 | K84: 0.09270207588 | L84: 4.086355274 | M84: 8.767860153 | N84: 12.9469175
A86: =IF(SUM(I86:N86)=0,"Ok","Check") -> Ok | C86: Check: No errors | I86: =+IF(COUNT(ISERROR(I79:I83))=0,0,1) -> 0 | J86: =+IF(COUNT(ISERROR(J79:J83))=0,0,1) -> 0 | K86: =+IF(COUNT(ISERROR(K79:K83))=0,0,1) -> 0 | L86: =+IF(COUNT(ISERROR(L79:L83))=0,0,1) -> 0 | M86: =+IF(COUNT(ISERROR(M79:M83))=0,0,1) -> 0 | N86: =+IF(COUNT(ISERROR(N79:N83))=0,0,1) -> 0
B89: End

Sheet Calc|Contributions
C1: =Index!$C$1 -> JEN Reopener - Unforeseen Major Connections Model | F1: Back to Index | H1: Key: | I1: Input (hard code) | J1: External Link | K1: Internal Link | L1: Drop down Selection | M1: Calculation | N1: Unique calculation | O1: Empty cell | R1: Section Check: | S1: =IF(COUNTA($A$109:$A$109)=COUNTIF($A$109:$A$109,"OK"),"OK","Check") -> OK | U1: Overall Check: | V1: ='Check|List'!$V$1 -> OK
C2: =RIGHT(CELL("filename",C1),LEN(CELL("filename",C1))-FIND("]",CELL("filename",C1))) -> Calc|Contributions
D3: Source | E3: Unit | F3: Basis | W3: =V3+1 -> 1
B5: Copyright Jemena Limited. All rights reserved. Jemena is not liable for any loss caused by reliance on this document.
B7: Calc | Raw Contribution Rate
C9: Project | D9: Source | E9: Unit | F9: Basis | H9: Ratio | J9: Value ($Million) | L9: Include? | N9: Type
C11: [c-i-c] | D11: Inputs | E11: Per cent | F11: n/a | H11: =Inputs!AB38 -> 0 | J11: ='Calc|Expenditure'!N11 -> 0.2914953998 | L11: =NOT(ISNA(H11)) -> TRUE | N11: =Inputs!AD38 -> Data centre
C12: [c-i-c] | D12: Inputs | E12: Per cent | F12: n/a | H12: =Inputs!AB39 -> 1.694603903 | J12: ='Calc|Expenditure'!N12 -> 5.847215109 | L12: TRUE | N12: =Inputs!AD39 -> Data centre
C13: [c-i-c] | D13: Inputs | E13: Per cent | F13: n/a | H13: =Inputs!AB40 ->  | J13: ='Calc|Expenditure'!N13 -> 3.009440699 | L13: FALSE | N13: =Inputs!AD40 -> Data centre
C14: [c-i-c] | D14: Inputs | E14: Per cent | F14: n/a | H14: =Inputs!AB41 ->  | J14: ='Calc|Expenditure'!N14 -> 18.29954921 | L14: FALSE | N14: =Inputs!AD41 -> Data centre
C15: [c-i-c] | D15: Inputs | E15: Per cent | F15: n/a | H15: =Inputs!AB42 -> 1.058278139 | J15: ='Calc|Expenditure'!N15 -> 3.269916266 | L15: TRUE | N15: =Inputs!AD42 -> Data centre
C16: [c-i-c] | D16: Inputs | E16: Per cent | F16: n/a | H16: =Inputs!AB43 -> 0.3830645602 | J16: ='Calc|Expenditure'!N16 -> 23.6189175 | L16: TRUE | N16: =Inputs!AD43 -> Data centre
C17: [c-i-c] | D17: Inputs | E17: Per cent | F17: n/a | H17: =Inputs!AB44 -> 0.3830645602 | J17: ='Calc|Expenditure'!N17 -> 5.640012849 | L17: TRUE | N17: =Inputs!AD44 -> Data centre
C18: [c-i-c] | D18: Inputs | E18: Per cent | F18: n/a | H18: =Inputs!AB45 -> 0.3830645602 | J18: ='Calc|Expenditure'!N18 -> 7.563689578 | L18: TRUE | N18: =Inputs!AD45 -> Data centre
C19: [c-i-c] | D19: Inputs | E19: Per cent | F19: n/a | H19: =Inputs!AB46 -> 0.9355440422 | J19: ='Calc|Expenditure'!N19 -> 4.429619618 | L19: TRUE | N19: =Inputs!AD46 -> Data centre
C20: [c-i-c] | D20: Inputs | E20: Per cent | F20: n/a | H20: =Inputs!AB47 -> 0.7063147482 | J20: ='Calc|Expenditure'!N20 -> 18.82320513 | L20: TRUE | N20: =Inputs!AD47 -> Data centre
C21: [c-i-c] | D21: Inputs | E21: Per cent | F21: n/a | H21: =Inputs!AB48 ->  | J21: ='Calc|Expenditure'!N21 -> 11.87307006 | L21: FALSE | N21: =Inputs!AD48 -> Data centre
C22: [c-i-c] | D22: Inputs | E22: Per cent | F22: n/a | H22: =Inputs!AB49 ->  | J22: ='Calc|Expenditure'!N22 -> 11.78309541 | L22: FALSE | N22: =Inputs!AD49 -> Data centre
C23: [c-i-c] | D23: Inputs | E23: Per cent | F23: n/a | H23: =Inputs!AB50 ->  | J23: ='Calc|Expenditure'!N23 -> 1.680725843 | L23: FALSE | N23: =Inputs!AD50 -> Data centre
C24: [c-i-c] | D24: Inputs | E24: Per cent | F24: n/a | H24: =Inputs!AB51 ->  | J24: ='Calc|Expenditure'!N24 -> 5.80691623 | L24: FALSE | N24: =Inputs!AD51 -> Data centre
C25: [c-i-c] | D25: Inputs | E25: Per cent | F25: n/a | H25: =Inputs!AB52 ->  | J25: ='Calc|Expenditure'!N25 -> 0.7139451379 | L25: FALSE | N25: =Inputs!AD52 -> Data centre
C26: [c-i-c] | D26: Inputs | E26: Per cent | F26: n/a | H26: =Inputs!AB53 ->  | J26: ='Calc|Expenditure'!N26 -> 16.14685505 | L26: FALSE | N26: =Inputs!AD53 -> Data centre
C27: [c-i-c] | D27: Inputs | E27: Per cent | F27: n/a | H27: =Inputs!AB54 ->  | J27: ='Calc|Expenditure'!N27 -> 1.446066085 | L27: FALSE | N27: =Inputs!AD54 -> Data centre
C28: [c-i-c] | D28: Inputs | E28: Per cent | F28: n/a | H28: =Inputs!AB55 ->  | J28: ='Calc|Expenditure'!N28 -> 13.68663312 | L28: FALSE | N28: =Inputs!AD55 -> Data centre
C29: [c-i-c] | D29: Inputs | E29: Per cent | F29: n/a | H29: =Inputs!AB56 ->  | J29: ='Calc|Expenditure'!N29 -> 0.8585053073 | L29: FALSE | N29: =Inputs!AD56 -> Data centre
C30: [c-i-c] | D30: Inputs | E30: Per cent | F30: n/a | H30: =Inputs!AB57 ->  | J30: ='Calc|Expenditure'!N30 -> 13.6257482 | L30: FALSE | N30: =Inputs!AD57 -> Data centre
C31: [c-i-c] | D31: Inputs | E31: Per cent | F31: n/a | H31: =Inputs!AB58 ->  | J31: ='Calc|Expenditure'!N31 -> 1.678314864 | L31: FALSE | N31: =Inputs!AD58 -> Data centre
C32: [c-i-c] | D32: Inputs | E32: Per cent | F32: n/a | H32: =Inputs!AB59 ->  | J32: ='Calc|Expenditure'!N32 -> 4.982584836 | L32: FALSE | N32: =Inputs!AD59 -> Data centre
C33: [c-i-c] | D33: Inputs | E33: Per cent | F33: n/a | H33: =Inputs!AB60 -> 1.187268119 | J33: ='Calc|Expenditure'!N33 -> 11.36109709 | L33: TRUE | N33: =Inputs!AD60 -> Data centre
C34: [c-i-c] | D34: Inputs | E34: Per cent | F34: n/a | H34: =Inputs!AB61 -> 1.187268119 | J34: ='Calc|Expenditure'!N34 -> 1.157794206 | L34: TRUE | N34: =Inputs!AD61 -> Data centre
C35: [c-i-c] | D35: Inputs | E35: Per cent | F35: n/a | H35: =Inputs!AB62 ->  | J35: ='Calc|Expenditure'!N35 -> 8.381366897 | L35: FALSE | N35: =Inputs!AD62 -> Data centre
C36: [c-i-c] | D36: Inputs | E36: Per cent | F36: n/a | H36: =Inputs!AB63 ->  | J36: ='Calc|Expenditure'!N36 -> 1.678314864 | L36: FALSE | N36: =Inputs!AD63 -> Data centre
C37: [c-i-c] | D37: Inputs | E37: Per cent | F37: n/a | H37: =Inputs!AB64 ->  | J37: ='Calc|Expenditure'!N37 -> 4.982584836 | L37: FALSE | N37: =Inputs!AD64 -> Data centre
C38: [c-i-c] | D38: Inputs | E38: Per cent | F38: n/a | H38: =Inputs!AB65 ->  | J38: ='Calc|Expenditure'!N38 -> 13.60041026 | L38: FALSE | N38: =Inputs!AD65 -> Data centre
C39: [c-i-c] | D39: Inputs | E39: Per cent | F39: n/a | H39: =Inputs!AB66 ->  | J39: ='Calc|Expenditure'!N39 -> 1.678314864 | L39: FALSE | N39: =Inputs!AD66 -> Data centre
C40: [c-i-c] | D40: Inputs | E40: Per cent | F40: n/a | H40: =Inputs!AB67 -> 0.4830468357 | J40: ='Calc|Expenditure'!N40 -> 1.107201072 | L40: TRUE | N40: =Inputs!AD67 -> Major infrastructure project
C41: [c-i-c] | D41: Inputs | E41: Per cent | F41: n/a | H41: =Inputs!AB68 -> 0 | J41: ='Calc|Expenditure'!N41 -> 0.1126391515 | L41: TRUE | N41: =Inputs!AD68 -> Major infrastructure project
C42: [c-i-c] | D42: Inputs | E42: Per cent | F42: n/a | H42: =Inputs!AB69 -> 0.8685222273 | J42: ='Calc|Expenditure'!N42 -> 10.35948727 | L42: TRUE | N42: =Inputs!AD69 -> Major infrastructure project
C43: [c-i-c] | D43: Inputs | E43: Per cent | F43: n/a | H43: =Inputs!AB70 -> 0.9873058858 | J43: ='Calc|Expenditure'!N43 -> 3.536092022 | L43: TRUE | N43: =Inputs!AD70 -> Major infrastructure project
C44: [c-i-c] | D44: Inputs | E44: Per cent | F44: n/a | H44: =Inputs!AB71 ->  | J44: ='Calc|Expenditure'!N44 -> 0.1346719062 | L44: FALSE | N44: =Inputs!AD71 -> Major infrastructure project
C45: [c-i-c] | D45: Inputs | E45: Per cent | F45: n/a | H45: =Inputs!AB72 -> 0.4031102154 | J45: ='Calc|Expenditure'!N45 -> 1.414648714 | L45: TRUE | N45: =Inputs!AD72 -> Major infrastructure project
C46: [c-i-c] | D46: Inputs | E46: Per cent | F46: n/a | H46: =Inputs!AB73 ->  | J46: ='Calc|Expenditure'!N46 -> 6.506415674 | L46: FALSE | N46: =Inputs!AD73 -> Major infrastructure project
C47: [c-i-c] | D47: Inputs | E47: Per cent | F47: n/a | H47: =Inputs!AB74 ->  | J47: ='Calc|Expenditure'!N47 -> 4.99882467 | L47: FALSE | N47: =Inputs!AD74 -> Major infrastructure project
C48: [c-i-c] | D48: Inputs | E48: Per cent | F48: n/a | H48: =Inputs!AB75 ->  | J48: ='Calc|Expenditure'!N48 -> 3.85444423 | L48: FALSE | N48: =Inputs!AD75 -> Major infrastructure project
C49: [c-i-c] | D49: Inputs | E49: Per cent | F49: n/a | H49: =Inputs!AB76 -> 0.9431225963 | J49: ='Calc|Expenditure'!N49 -> 0.101860407 | L49: TRUE | N49: =Inputs!AD76 -> Major infrastructure project
C50: [c-i-c] | D50: Inputs | E50: Per cent | F50: n/a | H50: =Inputs!AB77 ->  | J50: ='Calc|Expenditure'!N50 -> 2.379481556 | L50: FALSE | N50: =Inputs!AD77 -> Major infrastructure project
C51: [c-i-c] | D51: Inputs | E51: Per cent | F51: n/a | H51: =Inputs!AB78 ->  | J51: ='Calc|Expenditure'!N51 -> 4.192025428 | L51: FALSE | N51: =Inputs!AD78 -> Major infrastructure project
C54: Weighted Average Contribution Rate | D54: Source | E54: Unit | F54: Basis | H54: Ratio
C56: All | D56: Calculated | E56: Per cent | F56: n/a | H56: =SUM(_xlfn._xlws.FILTER($H$11:$H$52*$J$11:$J$52,$L$11:$L$52))/SUM(_xlfn._xlws.FILTER($J$11:$J$52,$L$11:$L$52)) -> 0.7448371654
C57: Data Centres | D57: Calculated | E57: Per cent | F57: n/a | H57: =SUM(_xlfn._xlws.FILTER($H$11:$H$52*$J$11:$J$52,($L$11:$L$52*($N$11:$N$52=$N$57))))/SUM(_xlfn._xlws.FILTER($J$11:$J$52,($L$11:$L$52*($N$11:$N$52=$N$57)))) -> 0.7289630192 | N57: Data centre
C58: Major Infrastructure Projects | D58: Calculated | E58: Per cent | F58: n/a | H58: =SUM(_xlfn._xlws.FILTER($H$11:$H$52*$J$11:$J$52,($L$11:$L$52*($N$11:$N$52<>$N$57))))/SUM(_xlfn._xlws.FILTER($J$11:$J$52,($L$11:$L$52*($N$11:$N$52<>$N$57)))) -> 0.8231039163
A60: =IF(SUM(I60:N60)=0,"Ok","Check") -> Ok | C60: Check: No errors | H60: =+IF(COUNT(ISERROR(H56:H58))=0,0,1) -> 0
B63: Calc | Contribution Rate Comparison
C65: Data Centres | D65: Source | E65: Unit | F65: Basis | H65: Ratio | J65: Type
C67: Weighted Average | D67: Above | E67: Per cent | F67: n/a | H67: =H57 -> 0.7289630192
C68: 2021-26 Determination | D68: Inputs | E68: Per cent | F68: n/a | H68: =_xlfn._xlws.FILTER(Inputs!$I$106:$I$112,Inputs!$K$106:$K$112=$J68) -> 0.583448203 | J68: Data centre
C69: Proposed | D69: JEN | E69: Per cent | F69: n/a | H69: =H67 -> 0.7289630192
A71: =IF(SUM(I71:N71)=0,"Ok","Check") -> Ok | C71: Check: No errors | H71: =+IF(COUNT(ISERROR(H67:H69))=0,0,1) -> 0
C85: Major Infrastructure Projects
C87: Weighted Average | D87: Above | E87: Per cent | F87: n/a | H87: =H58 -> 0.8231039163
C88: =_xlfn._xlws.FILTER(Inputs!$C$106:$C$112,Inputs!$K$106:$K$112=$J88) -> Residential Developments | D88: Inputs | E88: Per cent | F88: n/a | H88: =_xlfn._xlws.FILTER(Inputs!$I$106:$I$112,Inputs!$K$106:$K$112=$J88) -> 0.319 | J88: Other
C89: Medium Density Housing | D89: Inputs | E89: Per cent | F89: n/a | H89: 0.459
C90: Infrastructure Projects | D90: Inputs | E90: Per cent | F90: n/a | H90: 0.62
C91: Proposed | D91: JEN | E91: Per cent | F91: n/a | H91: =H87 -> 0.8231039163
A93: =IF(SUM(I93:N93)=0,"Ok","Check") -> Ok | C93: Check: No errors | H93: =+IF(COUNT(ISERROR(H87:H91))=0,0,1) -> 0
B109: End

Sheet Outputs
C1: =Index!$C$1 -> JEN Reopener - Unforeseen Major Connections Model | F1: Back to Index | H1: Key: | I1: Input (hard code) | J1: External Link | K1: Internal Link | L1: Drop down Selection | M1: Calculation | N1: Unique calculation | O1: Empty cell | Q1: Section Check: | R1: =IF(COUNTA($A$7:$A$32)=COUNTIF($A$7:$A$32,"OK"),"OK","Check") -> OK | T1: Overall Check: | U1: ='Check|List'!$V$1 -> OK
C2: =RIGHT(CELL("filename",C1),LEN(CELL("filename",C1))-FIND("]",CELL("filename",C1))) -> Outputs
D3: Source | E3: Unit | F3: Basis | I3: =+J3-1 -> 2022 | J3: =+K3-1 -> 2023 | K3: =+L3-1 -> 2024 | L3: =+M3-1 -> 2025 | M3: =+Inputs!$M$3 -> 2026 | N3: =M3+1 -> 2027 | O3: =N3+1 -> 2028 | P3: =O3+1 -> 2029 | Q3: =P3+1 -> 2030 | R3: =Q3+1 -> 2031
B5: Copyright Jemena Limited. All rights reserved. Jemena is not liable for any loss caused by reliance on this document.
B7: Outputs | Capex Forecast Model
C9: Projects | D9: Source | E9: Unit | F9: Basis | I9: ="RY"&RIGHT(I$3,2) -> RY22 | J9: RY23 | K9: RY24 | L9: RY25 | M9: RY26 | O9: Actvity Code | Q9: Contribution Rate | S9: Asset Class
C11: Unforseen Distribution Connections | Data Centres | D11: Calc|Expenditure | E11: $Million | F11: CY18 (Mid Period) | I11: ='Calc|Expenditure'!I60 -> 1.557979957 | J11: ='Calc|Expenditure'!J60 -> 9.222421885 | K11: ='Calc|Expenditure'!K60 -> 22.41854287 | L11: ='Calc|Expenditure'!L60 -> 45.64456801 | M11: ='Calc|Expenditure'!M60 -> 60.16126941 | O11: =Inputs!$G$24 -> CBH | Q11: ='Calc|Contributions'!$H$69 -> 0.7289630192 | S11: ='Calc|Expenditure'!Q60 -> SCS - Distribution system assets
C12: Unforseen Subtransmission Connections | Data Centres | D12: Calc|Expenditure | E12: $Million | F12: CY18 (Mid Period) | I12: ='Calc|Expenditure'!I61 -> 0 | J12: ='Calc|Expenditure'!J61 -> 0.002453559839 | K12: ='Calc|Expenditure'!K61 -> 0.06884778933 | L12: ='Calc|Expenditure'!L61 -> 21.3066126 | M12: ='Calc|Expenditure'!M61 -> 57.53270844 | O12: =Inputs!$G$24 -> CBH | Q12: ='Calc|Contributions'!$H$69 -> 0.7289630192 | S12: ='Calc|Expenditure'!Q61 -> SCS - Subtransmission
C13: Unforseen Distribution Connections | Major Infrastructure Projects | D13: Calc|Expenditure | E13: $Million | F13: CY18 (Mid Period) | I13: ='Calc|Expenditure'!I67 -> 6.278523668 | J13: ='Calc|Expenditure'!J67 -> 5.370476188 | K13: ='Calc|Expenditure'!K67 -> 2.65612603 | L13: ='Calc|Expenditure'!L67 -> 7.777888206 | M13: ='Calc|Expenditure'!M67 -> 14.23529645 | O13: =Inputs!$G$24 -> CBH | Q13: ='Calc|Contributions'!$H$91 -> 0.8231039163 | S13: ='Calc|Expenditure'!Q67 -> SCS - Distribution system assets
C14: Unforseen Subtransmission Connections | Major Infrastructure Projects | D14: Calc|Expenditure | E14: $Million | F14: CY18 (Mid Period) | I14: ='Calc|Expenditure'!I68 -> 0 | J14: ='Calc|Expenditure'!J68 -> 0.0006877847324 | K14: ='Calc|Expenditure'!K68 -> 0.02979292026 | L14: ='Calc|Expenditure'!L68 -> 0.1947730475 | M14: ='Calc|Expenditure'!M68 -> 2.154227803 | O14: =Inputs!$G$24 -> CBH | Q14: ='Calc|Contributions'!$H$91 -> 0.8231039163 | S14: ='Calc|Expenditure'!Q68 -> SCS - Subtransmission
C15: ='Calc|Expenditure'!C79 -> Augex - DC11&DC20 - ST-SSS 66kV line extension | D15: Calc|Expenditure | E15: $Million | F15: CY18 (Mid Period) | I15: ='Calc|Expenditure'!I79 -> 0 | J15: ='Calc|Expenditure'!J79 -> 0 | K15: ='Calc|Expenditure'!K79 -> 0.08690492028 | L15: ='Calc|Expenditure'!L79 -> 3.389083363 | M15: ='Calc|Expenditure'!M79 -> 4.525764042 | O15: =Inputs!$AG91 -> DOA | Q15: 0 | S15: ='Calc|Expenditure'!Q79 -> SCS - Subtransmission
C16: ='Calc|Expenditure'!C80 -> Augex - DC12&DC18&DC01 - augment KTS-AW | D16: Calc|Expenditure | E16: $Million | F16: CY18 (Mid Period) | I16: ='Calc|Expenditure'!I80 -> 0 | J16: ='Calc|Expenditure'!J80 -> 0 | K16: ='Calc|Expenditure'!K80 -> 0.003787577914 | L16: ='Calc|Expenditure'!L80 -> 0 | M16: ='Calc|Expenditure'!M80 -> 1.722623977 | O16: =Inputs!$AG92 -> DOA | Q16: 0 | S16: ='Calc|Expenditure'!Q80 -> SCS - Subtransmission
C17: ='Calc|Expenditure'!C81 -> Augex - DC02&DC09 - New 66kV line incomer at FW | D17: Calc|Expenditure | E17: $Million | F17: CY18 (Mid Period) | I17: ='Calc|Expenditure'!I81 -> 0 | J17: ='Calc|Expenditure'!J81 -> 0 | K17: ='Calc|Expenditure'!K81 -> 0.002009577684 | L17: ='Calc|Expenditure'!L81 -> 0 | M17: ='Calc|Expenditure'!M81 -> 0.8188089358 | O17: =Inputs!$AG93 -> DOA | Q17: 0 | S17: ='Calc|Expenditure'!Q81 -> SCS - Subtransmission
C18: ='Calc|Expenditure'!C82 -> Augex - DC02&DC09 - Tie TH-FW 66kV loops | D18: Calc|Expenditure | E18: $Million | F18: CY18 (Mid Period) | I18: ='Calc|Expenditure'!I82 -> 0 | J18: ='Calc|Expenditure'!J82 -> 0 | K18: ='Calc|Expenditure'!K82 -> 0 | L18: ='Calc|Expenditure'!L82 -> 0.6972719109 | M18: ='Calc|Expenditure'!M82 -> 1.700663197 | O18: =Inputs!$AG94 -> DOA | Q18: 0 | S18: ='Calc|Expenditure'!Q82 -> SCS - Subtransmission
C20: Total Gross Capex | D20: Calculated | E20: $Million | F20: CY18 (Mid Period) | I20: =SUM(I11:I18) -> 7.836503625 | J20: =SUM(J11:J18) -> 14.59603942 | K20: =SUM(K11:K18) -> 25.26601168 | L20: =SUM(L11:L18) -> 79.01019714 | M20: =SUM(M11:M18) -> 142.8513623
A22: =IF(SUM(I22:M22)=0,"Ok","Check") -> Ok | C22: Check: Totals balance | I22: =+IF(ROUND(I20-'Calc|Expenditure'!I53-'Calc|Expenditure'!I84,10)=0,0,1) -> 0 | J22: =+IF(ROUND(J20-'Calc|Expenditure'!J53-'Calc|Expenditure'!J84,10)=0,0,1) -> 0 | K22: =+IF(ROUND(K20-'Calc|Expenditure'!K53-'Calc|Expenditure'!K84,10)=0,0,1) -> 0 | L22: =+IF(ROUND(L20-'Calc|Expenditure'!L53-'Calc|Expenditure'!L84,10)=0,0,1) -> 0 | M22: =+IF(ROUND(M20-'Calc|Expenditure'!M53-'Calc|Expenditure'!M84,10)=0,0,1) -> 0
B25: Outputs | Bill Impacts
C27: Energy Delivered | D27: Source | E27: Unit | F27: Basis | I27: ="RY"&RIGHT(I$3,2) -> RY22 | J27: RY23 | K27: RY24 | L27: RY25 | M27: RY26 | N27: RY27 | O27: RY28 | P27: RY29 | Q27: RY30 | R27: RY31
A29: =+IF(ISNUMBER(SUM(I29:R29)),"Ok","Check") -> Ok | C29: Energy Delivered | D29: Inputs | E29: MWh | F29: n/a | I29: =Inputs!O80 -> 10673.294 | J29: =Inputs!P80 -> 24105.29865 | K29: =Inputs!Q80 -> 33755.06292 | L29: =Inputs!R80 -> 411791.8898 | M29: =Inputs!S80 -> 622446.7367 | N29: =Inputs!T80 -> 868691.7659 | O29: =Inputs!U80 -> 1046021.503 | P29: =Inputs!V80 -> 1142480.633 | Q29: =Inputs!W80 -> 1206324.458 | R29: =Inputs!X80 -> 1364305.398
B32: End

Sheet Lookup|Tables
C1: =Index!$C$1 -> JEN Reopener - Unforeseen Major Connections Model | J1: Back to Index | L1: Key: | M1: Input | N1: External Link | O1: Internal Link | U1: Overall Check: | V1: =+'Check|List'!V1 -> OK
C2: =RIGHT(CELL("filename",C1),LEN(CELL("filename",C1))-FIND("]",CELL("filename",C1))) -> Lookup|Tables
B5: Copyright Jemena Limited. All rights reserved. Jemena is not liable for any loss caused by reliance on this document.
B7: Lookup table
C9: Financial Unit Denomination | D9: Source | G9: Ref
C10: Dollars | D10: JEN | G10: $dollars
C11: Thousands | D11: JEN | G11: $000
C12: Millions | D12: JEN | G12: $millions
C14: Non-financial Unit Denomination
C15: Percent | D15: JEN | G15: Per cent
C16: Unit | D16: JEN | G16: unit
C17: Number | D17: JEN | G17: number
C18: Factor | D18: JEN | G18: factor
C19: Mains | D19: JEN | G19: mains
C20: Kilometres | D20: JEN | G20: kms
C21: Metres | D21: JEN | G21: metres
C23: Periodicity
C24: Actuals | D24: JEN | G24: Actual
C25: Forecast | D25: JEN | G25: Fcast
C26: Date | D26: JEN | G26: date
C27: Month | D27: JEN | G27: month
C28: Quarter | D28: JEN | G28: quarter
C29: Year | D29: JEN | G29: year
C30: Option | D30: JEN | G30: option
C31: Yes/No | D31: JEN | G31: yes/no
C32: Actuals/Forecast | D32: JEN | G32: (A)/(F)
C34: Time Intervals
C35: Number of months in a year | D35: JEN | G35: 12
C36: Number of days in a year | D36: JEN | G36: 365
C37: Number of weeks in a year | D37: JEN | G37: 52
C38: Number of periods (years) in reg period | D38: JEN | G38: 5
C40: Cash flow timing
C41: Start-year | D41: JEN | G41: -0.5
C42: Mid-year | D42: JEN | G42: 0
C43: End-year | D43: JEN | G43: 0.5
C44: Adjustment to mid-year | D44: JEN | G44: 0.5
C45: Adjustment to end-year | D45: JEN | G45: 1
C47: Timing
C48: Mid-year | D48: JEN | G48: Mid-year
C49: End-year | D49: JEN | G49: End-year
C51: Yes/No | G51: [Select]
C52: Yes | D52: JEN | G52: Yes
C53: No | D53: JEN | G53: No
C55: Dollar base
C56: 2015 | D56: JEN | G56: 2015
C57: 2016 | D57: JEN | G57: 2016
C58: 2017 | D58: JEN | G58: 2017
C59: 2018 | D59: JEN | G59: 2018
C60: 2019 | D60: JEN | G60: 2019
C61: 2020 | D61: JEN | G61: 2020
C62: 2021 | D62: JEN | G62: 2021
C63: 2022 | D63: JEN | G63: 2022
C64: 2023 | D64: JEN | G64: 2023
C65: 2024 | D65: JEN | G65: 2024
C66: 2025 | D66: JEN | G66: 2025
C67: 2026 | D67: JEN | G67: 2026
C68: 2027 | D68: JEN | G68: 2027
C69: 2028 | D69: JEN | G69: 2028
C70: 2029 | D70: JEN | G70: 2029
C71: 2030 | D71: JEN | G71: 2030
C72: Nominal | D72: JEN | G72: Nominal
C73: Real | D73: JEN | G73: Real
C74: Not Applicable | D74: JEN | G74: n/a
C76: Numeric Converters
C77: Thousands | D77: JEN | G77: 1000
C78: Millions | D78: JEN | G78: 1000000
C80: Rounding and Error Handling
C81: Rounding units | D81: JEN | G81: 5
C82: Very Small Number | D82: JEN | G82: 1e-07
B84: End

Sheet Check|List
C1: =Index!$C$1 -> JEN Reopener - Unforeseen Major Connections Model | J1: Back to Index | L1: Key: | M1: Input | N1: External Link | O1: Internal Link | U1: Overall Check: | V1: =IF(COUNTA($G$10:$G$13)=COUNTIF($G$10:$G$13,"OK"),"OK","Check") -> OK
C2: =RIGHT(CELL("filename",C1),LEN(CELL("filename",C1))-FIND("]",CELL("filename",C1))) -> Check|List
B5: Copyright Jemena Limited. All rights reserved. Jemena is not liable for any loss caused by reliance on this document.
B7: Check List
C9: Sheet | G9: Status
C10: =Index!C11 -> Inputs | G10: =Inputs!$S$1 -> OK
C11: =Index!C12 -> Calc|Expenditure | G11: ='Calc|Expenditure'!$S$1 -> OK
C12: =Index!C13 -> Calc|Contributions | G12: ='Calc|Contributions'!S1 -> OK
C13: =Index!C14 -> Outputs | G13: =Outputs!$R$1 -> OK
B15: End
